{"text_format":"1","workbook":"xlsx","n_sheets":11,"sheets":["TOP","保険料控除申告書","保険料控除入力","基礎・配偶者・調整控除申告書","R01配偶者控除等申告書","配偶者の生年月日","あなたの合計所得金額計算","区分１判定","配偶者の合計所得金額計算","区分2判定","配偶者（特別）控除の額"],"not_rendered":{"charts":0,"images":2,"macros":1,"external_links":0,"defined_names":19,"comments":1,"pivot_tables":0},"unopened":[],"bounds":{"document_bytes":16777216,"sheet_cells":100000,"rows_first":2000,"rows_last":500,"rows_between":2000,"halvings":0,"cell_chars":16384,"cell_head_chars":4096},"cells_cut":0,"cells_raw":0,"read":"whole","date_system":"1900"}

{"sheet":"TOP","index":0,"n_rows":12,"n_cols":10,"rows_kept":12,"cut":false,"hidden":false,"merged":[[8,7,8,9],[7,7,7,9],[6,7,6,9],[5,7,5,9],[6,2,6,4],[7,2,7,4],[8,2,8,4]]}
[null,"令和２年分　給与所得者の"]
[null,"『保険料控除申告書』及び『基礎控除・配偶者控除等・所得金額調整控除申告書』"]
[null,null,null,null,null,null,null,null,null,"作成支援ファイル"]
[]
[null,"◎給与の支払者の情報",null,null,null,null,"◎あなたの情報"]
[null,"所轄税務署","静岡","税務署",null,null,"氏名"]
[null,"給与の支払者の\n名称（氏名）","静岡市役所　静岡市長　田辺信宏\n（静岡市教育委員会）",null,null,null,"フリガナ"]
[null,"給与の支払者の\n法人番号","8000020221007",null,null,null,"職員番号"]
[null,"給与の支払者の\n所在地（住所）","静岡市葵区追手町５番１号",null,null,null,"住所"]
[null,null,null,null,null,null,"所属","静岡市立"]
[]
[null,null,null,null,null,null,null,{"$f":"PHONETIC(H6)","v":""}]

{"sheet":"保険料控除申告書","index":1,"n_rows":57,"n_cols":59,"rows_kept":57,"cut":false,"hidden":false,"merged":[[54,8,54,14],[54,15,54,21],[54,22,54,27],[54,35,55,52],[52,8,52,14],[52,15,52,21],[52,22,52,27],[41,25,42,26],[41,31,42,32],[41,35,42,52],[43,8,44,11],[53,15,53,21],[53,22,53,27],[50,53,51,56],[48,18,49,18],[45,19,46,24],[37,39,38,44],[37,45,38,49],[37,50,38,52],[30,28,31,28],[30,3,31,6],[43,14,44,17],[50,28,52,32],[37,29,37,32],[37,35,38,38],[37,3,38,6],[37,7,38,7],[37,11,38,11],[39,12,40,13],[51,8,51,14],[51,15,51,21],[51,22,51,27],[48,3,49,6],[48,7,49,7],[48,11,49,11],[50,15,50,27],[52,53,53,56],[39,2,49,2],[39,3,40,7],[39,8,40,11],[43,12,44,13],[48,35,49,52],[50,35,51,52],[52,35,53,52],[44,53,45,57],[45,18,47,18],[45,25,47,27],[45,28,47,28],[45,29,46,32],[46,53,47,56],[46,57,47,57],[47,29,47,31],[44,34,55,34],[44,35,45,52],[43,31,44,32],[44,28,44,30],[46,35,47,52],[54,53,55,56],[48,28,49,28],[48,53,49,56],[49,29,49,31],[39,14,40,17],[39,23,40,24],[39,25,40,26],[39,31,40,32],[39,35,40,38],[40,28,40,30],[41,3,42,7],[41,8,42,11],[41,12,42,13],[42,28,42,30],[43,3,44,7],[48,12,49,17],[55,8,55,14],[55,15,55,21],[55,22,55,27],[54,2,54,7],[43,18,43,22],[41,23,42,24],[43,23,44,24],[43,25,44,26],[45,3,47,6],[45,7,47,7],[45,11,47,11],[45,12,47,17],[52,2,52,7],[48,25,49,27],[55,2,55,7],[47,19,47,23],[48,19,48,24],[49,19,49,23],[53,2,53,7],[53,8,53,14],[50,2,50,14],[51,2,51,7],[32,53,33,56],[33,28,34,30],[35,3,36,7],[35,8,36,11],[35,12,36,13],[35,14,36,17],[35,18,36,22],[35,23,36,24],[35,27,36,27],[35,28,36,30],[35,31,36,32],[35,34,42,34],[35,35,36,38],[35,39,36,44],[35,45,35,52],[35,53,36,57],[41,14,42,17],[37,53,38,56],[38,29,38,31],[39,39,40,44],[39,45,40,49],[39,50,40,52],[39,53,40,56],[41,53,42,56],[28,25,29,27],[28,28,29,28],[37,22,38,27],[37,28,38,28],[30,7,31,7],[30,11,31,11],[30,12,31,17],[30,18,31,18],[20,50,23,51],[25,18,27,22],[25,12,27,13],[25,14,27,17],[32,23,34,24],[32,3,34,7],[32,8,34,11],[32,12,34,13],[32,14,34,17],[32,18,34,22],[28,3,29,6],[28,7,29,7],[28,11,29,11],[28,12,29,17],[28,18,29,18],[36,45,36,49],[20,56,23,57],[21,52,23,55],[22,3,24,7],[22,8,24,11],[22,12,24,13],[22,14,24,17],[22,18,24,22],[22,23,24,24],[22,25,24,26],[22,31,24,32],[22,44,23,47],[22,48,23,49],[24,35,25,52],[25,31,27,32],[26,35,27,52],[24,53,25,53],[24,54,25,56],[24,57,25,57],[25,3,27,7],[25,23,27,24],[25,25,27,26],[26,53,27,53],[26,54,27,56],[12,50,15,51],[12,52,15,55],[12,56,15,57],[12,58,56,58],[14,44,15,47],[14,48,15,49],[16,42,19,43],[16,44,17,49],[16,50,19,51],[16,56,19,57],[17,52,19,55],[18,44,19,47],[18,48,19,49],[26,57,27,57],[28,41,28,45],[28,46,29,46],[28,47,30,52],[28,53,28,57],[29,40,29,44],[29,53,29,56],[31,52,31,57],[36,50,36,52],[20,42,23,43],[20,44,21,49],[16,39,19,41],[19,25,21,26],[16,25,18,26],[19,31,21,32],[20,35,23,38],[20,39,23,41],[12,42,15,43],[12,44,13,49],[12,27,15,30],[12,31,15,32],[12,34,33,34],[12,35,15,38],[28,29,28,32],[28,35,33,37],[28,38,30,39],[32,27,34,27],[32,31,34,32],[29,29,29,31],[31,29,31,31],[30,25,31,27],[17,28,18,30],[20,28,21,30],[23,28,24,30],[26,28,27,30],[12,1,55,1],[12,3,15,6],[12,8,15,11],[12,12,15,13],[12,14,15,17],[12,18,13,24],[14,18,15,22],[14,23,15,24],[16,2,31,2],[16,3,18,7],[16,8,18,11],[16,12,18,13],[16,14,18,17],[16,18,18,22],[16,23,18,24],[19,3,21,7],[19,8,21,11],[19,12,21,13],[19,14,21,17],[19,18,21,22],[19,23,21,24],[25,8,27,11],[32,2,38,2],[41,18,41,22],[5,1,6,5],[5,6,6,9],[5,25,8,29],[6,30,8,45],[6,46,8,47],[7,1,9,5],[7,6,9,9],[9,25,10,29],[9,30,10,47],[10,3,10,5],[10,6,10,9],[5,30,5,45],[5,10,6,24],[8,10,9,24],[5,46,5,47],[1,54,1,56],[53,28,55,31],[7,10,7,24],[10,10,10,24],[28,8,29,10],[30,8,31,10],[37,8,38,10],[45,8,47,10],[48,8,49,10],[40,18,40,19],[40,20,40,22],[42,18,42,19],[42,20,42,22],[44,18,44,19],[44,20,44,22],[28,19,28,23],[29,19,29,23],[30,19,30,23],[31,19,31,23],[39,18,39,22],[12,25,15,26],[12,39,15,41],[16,31,18,32],[16,35,19,38]]}
[null,"※注意：このシートはプレビュー代わりです。入力と印刷は必ず『保険料控除入力』シートで行ってください。"]
[null,null,{"$f":"\"所　属　：　\"&IF(TOP!H10=\"\",\"\",TOP!H10)&IF(TOP!I10=\"\",\"\",TOP!I10)&IF(TOP!J10=\"\",\"\",TOP!J10)","v":"所　属　：　静岡市立"},null,null,null,null,null,null,null,null,null,null,null,null,null,null,null,null,null,null,null,null,null,null,null,null,null,null,{"$f":"\"氏　名　：　\"&IF(TOP!H6=\"\",\"\",TOP!H6)","v":"氏　名　：　"},null,null,null,null,null,null,null,null,null,null,null,null,null,null,null,null,null,null,null,null,null,null,null,"職　員　番　号　：　",{"$f":"IF(TOP!H8=\"\",\"\",TOP!H8)","v":""}]
[]
[null,"令 和 ２ 年 分　　給 与 所 得 者 の 保 険 料 控 除 申 告 書"]
[]
[null,"所轄税務署長",null,null,null,null,"給与の支払者の\n名称（氏名）",null,null,null,{"$f":"IF(TOP!C7=\"\",\"\",TOP!C7)","v":"静岡市役所　静岡市長　田辺信宏\n（静岡市教育委員会）"},null,null,null,null,null,null,null,null,null,null,null,null,null,null,"（ フ リ ガ ナ ）\nあなたの氏名",null,null,null,null,{"$f":"IF(TOP!H7=\"\",\"\",TOP!H7)","v":""}]
[null,null,null,null,null,null,null,null,null,null,null,null,null,null,null,null,null,null,null,null,null,null,null,null,null,null,null,null,null,null,{"$f":"IF(TOP!H6=\"\",\"\",TOP!H6)","v":""},null,null,null,null,null,null,null,null,null,null,null,null,null,null,null,"㊞"]
[null,{"$f":"IF(TOP!C6=\"\",\"\",TOP!C6)","v":"静岡"},null,null,null,null,"給与の支払者の\n法人番号",null,null,null,"※この申告書の提出を受けた給与の支払者（個人を除きます。）が記載してください。"]
[null,null,null,null,null,null,null,null,null,null,{"$f":"IF(TOP!C8=\"\",\"\",TOP!C8)","v":"8000020221007"}]
[null,null,null,null,null,null,null,null,null,null,null,null,null,null,null,null,null,null,null,null,null,null,null,null,null,"あなたの住所\n又 は  居  所",null,null,null,null,{"$f":"IF(TOP!H9=\"\",\"\",TOP!H9)","v":""}]
[null,null,null,"\n税務署長",null,null,"給与の支払者の\n所在地（住所）",null,null,null,{"$f":"IF(TOP!C9=\"\",\"\",TOP!C9)","v":"静岡市葵区追手町５番１号"}]
[]
[null,"生　 命　 保　 険　 料　 控　 除",null,"保険会社等\nの名称",null,null,null,null,"保険等の\n種類",null,null,null,"保険期間\n又は\n年金支払\n期       間",null,"保　険　等　の\n契約者の氏名",null,null,null,"保険金等の受取人",null,null,null,null,null,null,"新・旧\nの\n区分",null,"あなたが本年中に支払った\n保険料等の金額（分配を受け\nた剰余金等の控除後の金額）\n\n(a)",null,null,null,"給与の\n支払者の\n確認",null,null,"地　震　保　険　料　控　除","保険会社等\nの名称",null,null,null,"保険等の\n種類（目的）",null,null,"保険\n期間",null,"保険等の\n契約者の氏名",null,null,null,null,null,"地震保険料\n又は旧長期\n損害保険料\n区分",null,"あなたが本年中に支払った\n保険料等のうち、左欄の区分\nに係る金額（分配を受けた剰\n余金等の控除後の金額）\nⒶ",null,null,null,"給与の\n支払者の\n確認",null,"◎　この申告書の記載に当たっては、裏面の説明をお読みください。"]
[]
[null,null,null,null,null,null,null,null,null,null,null,null,null,null,null,null,null,null,"氏　　　　名",null,null,null,null,"あなたとの\n続柄",null,null,null,null,null,null,null,null,null,null,null,null,null,null,null,null,null,null,null,null,"保険等の対象となった家\n屋等に居住又は家財を\n利用している者等の氏名",null,null,null,"あなた\nとの\n続 　柄"]
[]
[null,null,"一般の生命保険料",{"$f":"IF(COUNT(保険料控除入力!K13:K22)>4,\"別紙内訳書のとおり\",IF(保険料控除入力!C13=\"\",\"\",保険料控除入力!C13))","v":""},null,null,null,null,{"$f":"IF(COUNT(保険料控除入力!K13:K22)>4,\"\",IF(保険料控除入力!D13=\"\",\"\",保険料控除入力!D13))","v":""},null,null,null,{"$f":"IF(COUNT(保険料控除入力!K13:K22)>4,\"\",IF(保険料控除入力!E13=\"\",\"\",保険料控除入力!E13))","v":""},null,{"$f":"IF(COUNT(保険料控除入力!K13:K22)>4,\"\",IF(保険料控除入力!F13=\"\",\"\",保険料控除入力!F13))","v":""},null,null,null,{"$f":"IF(COUNT(保険料控除入力!K13:K22)>4,\"\",IF(保険料控除入力!G13=\"\",\"\",保険料控除入力!G13))","v":""},null,null,null,null,{"$f":"IF(COUNT(保険料控除入力!K13:K22)>4,\"\",IF(保険料控除入力!H13=\"\",\"\",保険料控除入力!H13))","v":""},null,{"$f":"IF(COUNT(保険料控除入力!K13:K22)>4,IF(保険料控除入力!K23=0,保険料控除入力!J24,保険料控除入力!J23),IF(保険料控除入力!J13=\"\",\"新・旧\",保険料控除入力!J13))","v":"新・旧"},null,"(a)",null,null,"円",null,null,null,null,{"$f":"IF(COUNT(保険料控除入力!K44:K47)>2,\"別紙内訳書\",IF(保険料控除入力!C44=\"\",\"\",保険料控除入力!C44))","v":""},null,null,null,{"$f":"IF(COUNT(保険料控除入力!K44:K47)>2,\"のとおり\",IF(保険料控除入力!D44=\"\",\"\",保険料控除入力!D44))","v":""},null,null,{"$f":"IF(COUNT(保険料控除入力!K44:K47)>2,\"\",IF(保険料控除入力!E44=\"\",\"\",保険料控除入力!E44))","v":""},null,{"$f":"IF(COUNT(保険料控除入力!K44:K47)>2,\"\",IF(保険料控除入力!F44=\"\",\"\",保険料控除入力!F44))","v":""},null,null,null,null,null,{"$f":"IF(COUNT(保険料控除入力!K44:K47)>2,IF(保険料控除入力!K48=0,保険料控除入力!J49,保険料控除入力!J48),IF(保険料控除入力!J44=\"\",\"地   震\n・\n旧長期\",保険料控除入力!J44))","v":"地   震\n・\n旧長期"},null,null,null,null,"円"]
[null,null,null,null,null,null,null,null,null,null,null,null,null,null,null,null,null,null,null,null,null,null,null,null,null,null,null,null,{"$f":"IF(COUNT(保険料控除入力!K13:K22)>4,IF(保険料控除入力!K23=0,保険料控除入力!K24,保険料控除入力!K23),IF(保険料控除入力!K13=\"\",\"\",保険料控除入力!K13))","v":""},null,null,null,null,null,null,null,null,null,null,null,null,null,null,null,null,null,null,null,null,null,null,null,{"$f":"IF(COUNT(保険料控除入力!K44:K47)>2,IF(保険料控除入力!K48=0,保険料控除入力!K49,保険料控除入力!K48),IF(保険料控除入力!K44=\"\",\"\",保険料控除入力!K44))","v":""}]
[null,null,null,null,null,null,null,null,null,null,null,null,null,null,null,null,null,null,null,null,null,null,null,null,null,null,null,null,null,null,null,null,null,null,null,null,null,null,null,null,null,null,null,null,{"$f":"IF(COUNT(保険料控除入力!K44:K47)>2,\"\",IF(保険料控除入力!G44=\"\",\"\",保険料控除入力!G44))","v":""},null,null,null,{"$f":"IF(COUNT(保険料控除入力!K44:K47)>2,\"\",IF(保険料控除入力!H44=\"\",\"\",保険料控除入力!H44))","v":""}]
[null,null,null,{"$f":"IF(COUNT(保険料控除入力!K13:K22)>4,IF(OR(保険料控除入力!K23=0,保険料控除入力!K24=0),\"\",\"別紙内訳書のとおり\"),IF(保険料控除入力!C14=\"\",\"\",保険料控除入力!C14))","v":""},null,null,null,null,{"$f":"IF(COUNT(保険料控除入力!K13:K22)>4,\"\",IF(保険料控除入力!D14=\"\",\"\",保険料控除入力!D14))","v":""},null,null,null,{"$f":"IF(COUNT(保険料控除入力!K13:K22)>4,\"\",IF(保険料控除入力!E14=\"\",\"\",保険料控除入力!E14))","v":""},null,{"$f":"IF(COUNT(保険料控除入力!K13:K22)>4,\"\",IF(保険料控除入力!F14=\"\",\"\",保険料控除入力!F14))","v":""},null,null,null,{"$f":"IF(COUNT(保険料控除入力!K13:K22)>4,\"\",IF(保険料控除入力!G14=\"\",\"\",保険料控除入力!G14))","v":""},null,null,null,null,{"$f":"IF(COUNT(保険料控除入力!K13:K22)>4,\"\",IF(保険料控除入力!H14=\"\",\"\",保険料控除入力!H14))","v":""},null,{"$f":"IF(COUNT(保険料控除入力!K13:K22)>4,IF(OR(保険料控除入力!K23=0,保険料控除入力!K24=0),\"新・旧\",保険料控除入力!J24),IF(保険料控除入力!J14=\"\",\"新・旧\",保険料控除入力!J14))","v":"新・旧"},null,"(a)"]
[null,null,null,null,null,null,null,null,null,null,null,null,null,null,null,null,null,null,null,null,null,null,null,null,null,null,null,null,{"$f":"IF(COUNT(保険料控除入力!K13:K22)>4,IF(OR(保険料控除入力!K23=0,保険料控除入力!K24=0),\"\",保険料控除入力!K24),IF(保険料控除入力!K14=\"\",\"\",保険料控除入力!K14))","v":""},null,null,null,null,null,null,{"$f":"IF(COUNT(保険料控除入力!K44:K47)>2,IF(OR(保険料控除入力!K48=0,保険料控除入力!K49=0),\"\",\"別紙内訳書\"),IF(保険料控除入力!C45=\"\",\"\",保険料控除入力!C45))","v":""},null,null,null,{"$f":"IF(COUNT(保険料控除入力!K44:K47)>2,IF(OR(保険料控除入力!K48=0,保険料控除入力!K49=0),\"\",\"のとおり\"),IF(保険料控除入力!D45=\"\",\"\",保険料控除入力!D45))","v":""},null,null,{"$f":"IF(COUNT(保険料控除入力!K44:K47)>2,\"\",IF(保険料控除入力!E45=\"\",\"\",保険料控除入力!E45))","v":""},null,{"$f":"IF(COUNT(保険料控除入力!K44:K47)>2,\"\",IF(保険料控除入力!F45=\"\",\"\",保険料控除入力!F45))","v":""},null,null,null,null,null,{"$f":"IF(COUNT(保険料控除入力!K44:K47)>2,IF(OR(保険料控除入力!K48=0,保険料控除入力!K49=0),\"地   震\n・\n旧長期\",保険料控除入力!J49),IF(保険料控除入力!J45=\"\",\"地   震\n・\n旧長期\",保険料控除入力!J45))","v":"地   震\n・\n旧長期"}]
[null,null,null,null,null,null,null,null,null,null,null,null,null,null,null,null,null,null,null,null,null,null,null,null,null,null,null,null,null,null,null,null,null,null,null,null,null,null,null,null,null,null,null,null,null,null,null,null,null,null,null,null,{"$f":"IF(COUNT(保険料控除入力!K44:K47)>2,IF(OR(保険料控除入力!K48=0,保険料控除入力!K49=0),\"\",保険料控除入力!K49),IF(保険料控除入力!K45=\"\",\"\",保険料控除入力!K45))","v":""}]
[null,null,null,{"$f":"IF(COUNT(保険料控除入力!K13:K22)>4,\"\",IF(保険料控除入力!C15=\"\",\"\",保険料控除入力!C15))","v":""},null,null,null,null,{"$f":"IF(COUNT(保険料控除入力!K13:K22)>4,\"\",IF(保険料控除入力!D15=\"\",\"\",保険料控除入力!D15))","v":""},null,null,null,{"$f":"IF(COUNT(保険料控除入力!K13:K22)>4,\"\",IF(保険料控除入力!E15=\"\",\"\",保険料控除入力!E15))","v":""},null,{"$f":"IF(COUNT(保険料控除入力!K13:K22)>4,\"\",IF(保険料控除入力!F15=\"\",\"\",保険料控除入力!F15))","v":""},null,null,null,{"$f":"IF(COUNT(保険料控除入力!K13:K22)>4,\"\",IF(保険料控除入力!G15=\"\",\"\",保険料控除入力!G15))","v":""},null,null,null,null,{"$f":"IF(COUNT(保険料控除入力!K13:K22)>4,\"\",IF(保険料控除入力!H15=\"\",\"\",保険料控除入力!H15))","v":""},null,{"$f":"IF(COUNT(保険料控除入力!K13:K22)>4,\"新・旧\",IF(保険料控除入力!J15=\"\",\"新・旧\",保険料控除入力!J15))","v":"新・旧"},null,"(a)",null,null,null,null,null,null,null,null,null,null,null,null,null,null,null,null,{"$f":"IF(COUNT(保険料控除入力!K44:K47)>2,\"\",IF(保険料控除入力!G45=\"\",\"\",保険料控除入力!G45))","v":""},null,null,null,{"$f":"IF(COUNT(保険料控除入力!K44:K47)>2,\"\",IF(保険料控除入力!H45=\"\",\"\",保険料控除入力!H45))","v":""}]
[null,null,null,null,null,null,null,null,null,null,null,null,null,null,null,null,null,null,null,null,null,null,null,null,null,null,null,null,{"$f":"IF(COUNT(保険料控除入力!K13:K22)>4,\"\",IF(保険料控除入力!K15=\"\",\"\",保険料控除入力!K15))","v":""}]
[null,null,null,null,null,null,null,null,null,null,null,null,null,null,null,null,null,null,null,null,null,null,null,null,null,null,null,null,null,null,null,null,null,null,null,"　Ⓐのうち地震保険料の金額の合計額",null,null,null,null,null,null,null,null,null,null,null,null,null,null,null,null,null,"Ⓑ",{"$f":"SUMIF(AY17:AZ24,\"地   震\",BA18:BD24)","v":0},null,null,"円"]
[null,null,null,{"$f":"IF(COUNT(保険料控除入力!K13:K22)>4,\"\",IF(保険料控除入力!C16=\"\",\"\",保険料控除入力!C16))","v":""},null,null,null,null,{"$f":"IF(COUNT(保険料控除入力!K13:K22)>4,\"\",IF(保険料控除入力!D16=\"\",\"\",保険料控除入力!D16))","v":""},null,null,null,{"$f":"IF(COUNT(保険料控除入力!K13:K22)>4,\"\",IF(保険料控除入力!E16=\"\",\"\",保険料控除入力!E16))","v":""},null,{"$f":"IF(COUNT(保険料控除入力!K13:K22)>4,\"\",IF(保険料控除入力!F16=\"\",\"\",保険料控除入力!F16))","v":""},null,null,null,{"$f":"IF(COUNT(保険料控除入力!K13:K22)>4,\"\",IF(保険料控除入力!G16=\"\",\"\",保険料控除入力!G16))","v":""},null,null,null,null,{"$f":"IF(COUNT(保険料控除入力!K13:K22)>4,\"\",IF(保険料控除入力!H16=\"\",\"\",保険料控除入力!H16))","v":""},null,{"$f":"IF(COUNT(保険料控除入力!K13:K22)>4,\"新・旧\",IF(保険料控除入力!J16=\"\",\"新・旧\",保険料控除入力!J16))","v":"新・旧"},null,"(a)"]
[null,null,null,null,null,null,null,null,null,null,null,null,null,null,null,null,null,null,null,null,null,null,null,null,null,null,null,null,{"$f":"IF(COUNT(保険料控除入力!K13:K22)>4,\"\",IF(保険料控除入力!K16=\"\",\"\",保険料控除入力!K16))","v":""},null,null,null,null,null,null,"　Ⓐのうち旧長期損害保険料の金額の合計額",null,null,null,null,null,null,null,null,null,null,null,null,null,null,null,null,null,"Ⓒ",{"$f":"SUMIF(AY17:AZ24,\"旧長期\",BA18:BD24)","v":0},null,null,"円"]
[]
[null,null,null,"(a)のうち新保険料\n等の金額の合計額",null,null,null,"A",{"$f":"SUMIF(Z17:AA28,\"新\",AC18:AE28)","v":0},null,null,"円","Aの金額を下の計算式Ⅰ（新保険\n料等用）に当てはめて計算した金額",null,null,null,null,null,"①","（最高40,000円）",null,null,null,null,null,"計（①＋②）",null,null,"③","（最高40,000円）",null,null,null,null,null,"地震保険料\n控除額",null,null,"Ⓑの\n金額",null,null,"（最高50,000円）",null,null,null,null,"＋","Ⓒの金額 （Ⓒの金額が\n10,000円を超える場合は、\nⒸ×1/2＋5,000円）　※",null,null,null,null,null,"（最高15,000円）"]
[null,null,null,null,null,null,null,null,null,null,null,null,null,null,null,null,null,null,null,{"$f":"ROUNDUP(IF(I29<=20000,I29,IF(I29<=40000,I29/2+10000,IF(I29<=80000,I29/4+20000,40000))),0)","v":0},null,null,null,null,"円",null,null,null,null,{"$f":"MIN(T30+T32,40000)","v":0},null,null,"円",null,null,null,null,null,null,null,{"$f":"MIN(BC25,50000)","v":0},null,null,null,null,"円",null,null,null,null,null,null,null,{"$f":"MIN(IF(BC27>10000,ROUNDUP(BC27/2+5000,0),BC27),15000)","v":0},null,null,null,"円"]
[null,null,null,"(a)のうち旧保険料\n等の金額の合計額",null,null,null,"B",{"$f":"SUMIF(Z17:AA28,\"旧\",AC18:AE28)","v":0},null,null,"円","Bの金額を下の計算式Ⅱ（旧保険\n料等用）に当てはめて計算した金額",null,null,null,null,null,"②","（最高50,000円）",null,null,null,null,null,"②と③のいずれ\nか大きい金額",null,null,"㋑"]
[null,null,null,null,null,null,null,null,null,null,null,null,null,null,null,null,null,null,null,{"$f":"ROUNDUP(IF(I31<=25000,I31,IF(I31<=50000,I31/2+12500,IF(I31<=100000,I31/4+25000,50000))),0)","v":0},null,null,null,null,"円",null,null,null,null,{"$f":"MAX(T32,AD30)","v":0},null,null,"円",null,null,null,null,null,null,null,null,null,null,null,null,null,null,null,null,null,null,null,"（最高50,000円）"]
[null,null,"介護医療保険料",{"$f":"IF(COUNT(保険料控除入力!K25:K32)>2,\"別紙内訳書のとおり\",IF(保険料控除入力!C25=\"\",\"\",保険料控除入力!C25))","v":""},null,null,null,null,{"$f":"IF(COUNT(保険料控除入力!K25:K32)>2,\"\",IF(保険料控除入力!D25=\"\",\"\",保険料控除入力!D25))","v":""},null,null,null,{"$f":"IF(COUNT(保険料控除入力!K25:K32)>2,\"\",IF(保険料控除入力!E25=\"\",\"\",保険料控除入力!E25))","v":""},null,{"$f":"IF(COUNT(保険料控除入力!K25:K32)>2,\"\",IF(保険料控除入力!F25=\"\",\"\",保険料控除入力!F25))","v":""},null,null,null,{"$f":"IF(COUNT(保険料控除入力!K25:K32)>2,\"\",IF(保険料控除入力!G25=\"\",\"\",保険料控除入力!G25))","v":""},null,null,null,null,{"$f":"IF(COUNT(保険料控除入力!K25:K32)>2,\"\",IF(保険料控除入力!H25=\"\",\"\",保険料控除入力!H25))","v":""},null,null,null,"(a)",null,null,"円",null,null,null,null,null,null,null,null,null,null,null,null,null,null,null,null,null,null,null,null,"＝",null,{"$f":"MIN(AO30+BB30,50000)","v":0}]
[null,null,null,null,null,null,null,null,null,null,null,null,null,null,null,null,null,null,null,null,null,null,null,null,null,null,null,null,{"$f":"IF(COUNT(保険料控除入力!K25:K32)>2,保険料控除入力!K33,IF(保険料控除入力!K25=\"\",\"\",保険料控除入力!K25))","v":""},null,null,null,null,null,null,null,null,null,null,null,null,null,null,null,null,null,null,null,null,null,null,null,null,null,null,null,null,"円"]
[]
[null,null,null,{"$f":"IF(COUNT(保険料控除入力!K25:K32)>2,\"\",IF(保険料控除入力!C26=\"\",\"\",保険料控除入力!C26))","v":""},null,null,null,null,{"$f":"IF(COUNT(保険料控除入力!K25:K32)>2,\"\",IF(保険料控除入力!D26=\"\",\"\",保険料控除入力!D26))","v":""},null,null,null,{"$f":"IF(COUNT(保険料控除入力!K25:K32)>2,\"\",IF(保険料控除入力!E26=\"\",\"\",保険料控除入力!E26))","v":""},null,{"$f":"IF(COUNT(保険料控除入力!K25:K32)>2,\"\",IF(保険料控除入力!F26=\"\",\"\",保険料控除入力!F26))","v":""},null,null,null,{"$f":"IF(COUNT(保険料控除入力!K25:K32)>2,\"\",IF(保険料控除入力!G26=\"\",\"\",保険料控除入力!G26))","v":""},null,null,null,null,{"$f":"IF(COUNT(保険料控除入力!K25:K32)>2,\"\",IF(保険料控除入力!H26=\"\",\"\",保険料控除入力!H26))","v":""},null,null,null,"(a)",{"$f":"IF(COUNT(保険料控除入力!K25:K32)>2,\"\",IF(保険料控除入力!K26=\"\",\"\",保険料控除入力!K26))","v":""},null,null,null,null,null,"社会保険料控除","社会保険\nの  種  類",null,null,null,"保険料支払先\nの　　 名　　称",null,null,null,null,null,"保険料を負担することになっている人",null,null,null,null,null,null,null,"あなたが本年中に支\n払った保険料の金額"]
[null,null,null,null,null,null,null,null,null,null,null,null,null,null,null,null,null,null,null,null,null,null,null,null,null,null,null,null,null,null,null,null,null,null,null,null,null,null,null,null,null,null,null,null,null,"氏　　名",null,null,null,null,"あなたとの続柄"]
[null,null,null,"(a)の金額の合計額",null,null,null,"Ｃ",{"$f":"SUM(AC34:AE37)","v":0},null,null,"円",null,null,null,null,null,null,null,null,null,null,"Ｃの金額を下の計算式Ⅰ（新保険\n料等用）に当てはめて計算した金額",null,null,null,null,null,"㋺","（最高40,000円）",null,null,null,null,null,{"$f":"IF(COUNT(保険料控除入力!R13:R18)>2,\"\",IF(保険料控除入力!N13=\"\",\"\",保険料控除入力!N13))","v":""},null,null,null,{"$f":"IF(COUNT(保険料控除入力!R13:R18)>2,\"別紙内訳書のとおり\",IF(保険料控除入力!O13=\"\",\"\",保険料控除入力!O13))","v":""},null,null,null,null,null,{"$f":"IF(COUNT(保険料控除入力!R13:R18)>2,\"\",IF(保険料控除入力!P13=\"\",\"\",保険料控除入力!P13))","v":""},null,null,null,null,{"$f":"IF(COUNT(保険料控除入力!R13:R18)>2,\"\",IF(保険料控除入力!Q13=\"\",\"\",保険料控除入力!Q13))","v":""},null,null,{"$f":"IF(COUNT(保険料控除入力!R13:R18)>2,保険料控除入力!R19,IF(保険料控除入力!R13=\"\",\"\",保険料控除入力!R13))","v":""},null,null,null,"円"]
[null,null,null,null,null,null,null,null,null,null,null,null,null,null,null,null,null,null,null,null,null,null,null,null,null,null,null,null,null,{"$f":"ROUNDUP(IF(I38<=20000,I38,IF(I38<=40000,I38/2+10000,IF(I38<=80000,I38/4+20000,40000))),0)","v":0},null,null,"円"]
[null,null,"個人年金保険料",{"$f":"IF(COUNT(保険料控除入力!K34:K41)>3,\"別紙内訳書のとおり\",IF(保険料控除入力!C34=\"\",\"\",保険料控除入力!C34))","v":""},null,null,null,null,{"$f":"IF(COUNT(保険料控除入力!K34:K41)>3,\"\",IF(保険料控除入力!D34=\"\",\"\",保険料控除入力!D34))","v":""},null,null,null,{"$f":"IF(COUNT(保険料控除入力!K34:K41)>3,\"\",IF(保険料控除入力!E34=\"\",\"\",保険料控除入力!E34))","v":""},null,{"$f":"IF(COUNT(保険料控除入力!K34:K41)>3,\"\",IF(保険料控除入力!F34=\"\",\"\",保険料控除入力!F34))","v":""},null,null,null,{"$f":"IF(COUNT(保険料控除入力!K34:K41)>3,\"\",IF(保険料控除入力!G34=\"\",\"\",保険料控除入力!G34))","v":""},null,null,null,null,{"$f":"IF(COUNT(保険料控除入力!K34:K41)>3,\"\",IF(保険料控除入力!H34=\"\",\"\",保険料控除入力!H34))","v":""},null,{"$f":"IF(COUNT(保険料控除入力!K34:K41)>4,IF(保険料控除入力!K42=0,保険料控除入力!J43,保険料控除入力!J42),IF(保険料控除入力!J34=\"\",\"新・旧\",保険料控除入力!J34))","v":"新・旧"},null,"(a)",null,null,"円",null,null,null,null,{"$f":"IF(COUNT(保険料控除入力!R13:R18)>2,\"\",IF(保険料控除入力!N14=\"\",\"\",保険料控除入力!N14))","v":""},null,null,null,{"$f":"IF(COUNT(保険料控除入力!R13:R18)>2,\"\",IF(保険料控除入力!O14=\"\",\"\",保険料控除入力!O14))","v":""},null,null,null,null,null,{"$f":"IF(COUNT(保険料控除入力!R13:R18)>2,\"\",IF(保険料控除入力!P14=\"\",\"\",保険料控除入力!P14))","v":""},null,null,null,null,{"$f":"IF(COUNT(保険料控除入力!R13:R18)>2,\"\",IF(保険料控除入力!Q14=\"\",\"\",保険料控除入力!Q14))","v":""},null,null,{"$f":"IF(COUNT(保険料控除入力!R13:R18)>2,\"\",IF(保険料控除入力!R14=\"\",\"\",保険料控除入力!R14))","v":""}]
[null,null,null,null,null,null,null,null,null,null,null,null,null,null,null,null,null,null,"支払開始日",null,{"$f":"IF(COUNT(保険料控除入力!K34:K41)>3,\"・　・\",IF(保険料控除入力!I34=\"\",\"・　・\",保険料控除入力!I34))","v":"・　・"},null,null,null,null,null,null,null,{"$f":"IF(COUNT(保険料控除入力!K34:K41)>3,IF(保険料控除入力!K42=0,保険料控除入力!K43,保険料控除入力!K42),IF(保険料控除入力!K34=\"\",\"\",保険料控除入力!K34))","v":""}]
[null,null,null,{"$f":"IF(COUNT(保険料控除入力!K34:K41)>3,IF(OR(保険料控除入力!K42=0,保険料控除入力!K43=0),\"\",\"別紙内訳書のとおり\"),IF(保険料控除入力!C35=\"\",\"\",保険料控除入力!C35))","v":""},null,null,null,null,{"$f":"IF(COUNT(保険料控除入力!K34:K41)>3,\"\",IF(保険料控除入力!D35=\"\",\"\",保険料控除入力!D35))","v":""},null,null,null,{"$f":"IF(COUNT(保険料控除入力!K34:K41)>3,\"\",IF(保険料控除入力!E35=\"\",\"\",保険料控除入力!E35))","v":""},null,{"$f":"IF(COUNT(保険料控除入力!K34:K41)>3,\"\",IF(保険料控除入力!F35=\"\",\"\",保険料控除入力!F35))","v":""},null,null,null,{"$f":"IF(COUNT(保険料控除入力!K34:K41)>3,\"\",IF(保険料控除入力!G35=\"\",\"\",保険料控除入力!G35))","v":""},null,null,null,null,{"$f":"IF(COUNT(保険料控除入力!K34:K41)>3,\"\",IF(保険料控除入力!H35=\"\",\"\",保険料控除入力!H35))","v":""},null,{"$f":"IF(COUNT(保険料控除入力!K34:K41)>3,IF(OR(保険料控除入力!K42=0,保険料控除入力!K43=0),\"新・旧\",保険料控除入力!J43),IF(保険料控除入力!J35=\"\",\"新・旧\",保険料控除入力!J35))","v":"新・旧"},null,"(a)",null,null,null,null,null,null,null,"合　　計　　（ 控 除 額 ）",null,null,null,null,null,null,null,null,null,null,null,null,null,null,null,null,null,{"$f":"SUM(BB38:BE41)","v":0}]
[null,null,null,null,null,null,null,null,null,null,null,null,null,null,null,null,null,null,"支払開始日",null,{"$f":"IF(COUNT(保険料控除入力!K34:K41)>3,\"・　・\",IF(保険料控除入力!I35=\"\",\"・　・\",保険料控除入力!I35))","v":"・　・"},null,null,null,null,null,null,null,{"$f":"IF(COUNT(保険料控除入力!K34:K41)>3,IF(OR(保険料控除入力!K42=0,保険料控除入力!K43=0),\"\",保険料控除入力!K43),IF(保険料控除入力!K35=\"\",\"\",保険料控除入力!K35))","v":""},null,null,null,null,null,null,null,null,null,null,null,null,null,null,null,null,null,null,null,null,null,null,null,null,null,null,null,null,"円"]
[null,null,null,{"$f":"IF(COUNT(保険料控除入力!K34:K41)>3,\"\",IF(保険料控除入力!C36=\"\",\"\",保険料控除入力!C36))","v":""},null,null,null,null,{"$f":"IF(COUNT(保険料控除入力!K34:K41)>3,\"\",IF(保険料控除入力!D36=\"\",\"\",保険料控除入力!D36))","v":""},null,null,null,{"$f":"IF(COUNT(保険料控除入力!K34:K41)>3,\"\",IF(保険料控除入力!E36=\"\",\"\",保険料控除入力!E36))","v":""},null,{"$f":"IF(COUNT(保険料控除入力!K34:K41)>3,\"\",IF(保険料控除入力!F36=\"\",\"\",保険料控除入力!F36))","v":""},null,null,null,{"$f":"IF(COUNT(保険料控除入力!K34:K41)>3,\"\",IF(保険料控除入力!G36=\"\",\"\",保険料控除入力!G36))","v":""},null,null,null,null,{"$f":"IF(COUNT(保険料控除入力!K34:K41)>3,\"\",IF(保険料控除入力!H36=\"\",\"\",保険料控除入力!H36))","v":""},null,{"$f":"IF(COUNT(保険料控除入力!K34:K41)>3,\"新・旧\",IF(保険料控除入力!J36=\"\",\"新・旧\",保険料控除入力!J36))","v":"新・旧"},null,"(a)"]
[null,null,null,null,null,null,null,null,null,null,null,null,null,null,null,null,null,null,"支払開始日",null,{"$f":"IF(COUNT(保険料控除入力!K34:K41)>3,\"・　・\",IF(保険料控除入力!I36=\"\",\"・　・\",保険料控除入力!I36))","v":"・　・"},null,null,null,null,null,null,null,{"$f":"IF(COUNT(保険料控除入力!K34:K41)>3,\"\",IF(保険料控除入力!K36=\"\",\"\",保険料控除入力!K36))","v":""},null,null,null,null,null,"小規模企業共済等掛金控除","種　　　　　類",null,null,null,null,null,null,null,null,null,null,null,null,null,null,null,null,null,"あなたが本年中に支\n払った掛金の金額"]
[null,null,null,"(a)のうち新保険料\n等の金額の合計額",null,null,null,"Ｄ",{"$f":"SUMIF(Z40:AA45,\"新\",AC41:AE45)","v":0},null,null,"円","Ｄの金額を下の計算式Ⅰ（新保険\n料等用）に当てはめて計算した金額",null,null,null,null,null,"④","（最高40,000円）",null,null,null,null,null,"計（④＋⑤）",null,null,"⑥","（最高40,000円）"]
[null,null,null,null,null,null,null,null,null,null,null,null,null,null,null,null,null,null,null,null,null,null,null,null,null,null,null,null,null,null,null,null,null,null,null,"独立行政法人中小企業基盤整備機構の共済契約の掛金",null,null,null,null,null,null,null,null,null,null,null,null,null,null,null,null,null,null,null,null,null,"円"]
[null,null,null,null,null,null,null,null,null,null,null,null,null,null,null,null,null,null,null,{"$f":"ROUNDUP(IF(I46<=20000,I46,IF(I46<=40000,I46/2+10000,IF(I46<=80000,I46/4+20000,40000))),0)","v":0},null,null,null,null,"円",null,null,null,null,{"$f":"MIN(T48+T50,40000)","v":0},null,null,"円"]
[null,null,null,"(a)のうち旧保険料\n等の金額の合計額",null,null,null,"Ｅ",{"$f":"SUMIF(Z40:AA45,\"旧\",AC41:AE45)","v":0},null,null,"円","Ｅの金額を下の計算式Ⅱ（旧保険\n料等用）に当てはめて計算した金額",null,null,null,null,null,"⑤","（最高50,000円）",null,null,null,null,null,"⑤と⑥のいずれ\nか大きい金額",null,null,"㋩",null,null,null,null,null,null,"確定拠出年金法に規定する企業型年金加入者掛金"]
[null,null,null,null,null,null,null,null,null,null,null,null,null,null,null,null,null,null,null,{"$f":"ROUNDUP(IF(I49<=25000,I49,IF(I49<=50000,I49/2+12500,IF(I49<=100000,I49/4+25000,50000))),0)","v":0},null,null,null,null,"円",null,null,null,null,{"$f":"MAX(T50,AD48)","v":0},null,null,"円"]
[null,null,"計　算　式　Ⅰ　（新保険料等用）　※",null,null,null,null,null,null,null,null,null,null,null,null,"計　算　式　Ⅱ　（旧保険料等用）　※",null,null,null,null,null,null,null,null,null,null,null,null,"生命保険料控除額\n計（㋑＋㋺＋㋩）\n（最高120,000円）",null,null,null,null,null,null,"確定拠出年金法に規定する個人型年金加入者掛金",null,null,null,null,null,null,null,null,null,null,null,null,null,null,null,null,null,{"$f":"IF(保険料控除入力!R27=\"\",\"\",保険料控除入力!R27)","v":""}]
[null,null,"Ａ、Ｃ又はＤの金額",null,null,null,null,null,"控除額の計算式",null,null,null,null,null,null,"Ｂ又はＥの金額",null,null,null,null,null,null,"控除額の計算式"]
[null,null,"20,000円以下",null,null,null,null,null,"Ａ、Ｃ又はＤの全額",null,null,null,null,null,null,"25,000円以下",null,null,null,null,null,null,"Ｂ又はＥの全額",null,null,null,null,null,null,null,null,null,null,null,null,"心身障害者扶養共済制度に関する契約の掛金",null,null,null,null,null,null,null,null,null,null,null,null,null,null,null,null,null,{"$f":"IF(保険料控除入力!R28=\"\",\"\",保険料控除入力!R28)","v":""}]
[null,null,"20,001円から40,000円まで",null,null,null,null,null,"（Ａ、Ｃ又はＤ）×1/2＋10,000円",null,null,null,null,null,null,"25,001円から50,000円まで",null,null,null,null,null,null,"（Ｂ又はＥ）×1/2＋12,500円",null,null,null,null,null,{"$f":"MIN(AD32+AD39+AD50,120000)","v":0}]
[null,null,"40,001円から80,000円まで",null,null,null,null,null,"（Ａ、Ｃ又はＤ）×1/4＋20,000円",null,null,null,null,null,null,"50,001円から100,000円まで",null,null,null,null,null,null,"（Ｂ又はＥ）×1/4＋25,000円",null,null,null,null,null,null,null,null,null,null,null,null,"合　　計　　（ 控 除 額 ）",null,null,null,null,null,null,null,null,null,null,null,null,null,null,null,null,null,{"$f":"SUM(BB47:BE54)","v":0}]
[null,null,"80,001円以上",null,null,null,null,null,"一律に40,000円",null,null,null,null,null,null,"100,001円以上",null,null,null,null,null,null,"一律に50,000円",null,null,null,null,null,null,null,null,null,"円",null,null,null,null,null,null,null,null,null,null,null,null,null,null,null,null,null,null,null,null,null,null,null,null,"円"]
[null,null,"※　控除額の計算において算出した金額に１円未満の端数があるときは、その端数を切り上げます。"]

{"sheet":"保険料控除入力","index":2,"n_rows":49,"n_cols":21,"rows_kept":49,"cut":false,"hidden":false,"merged":[[3,5,5,7],[43,1,48,1],[33,1,42,1],[8,6,8,8],[22,6,23,8],[41,6,42,8],[10,7,11,7],[12,1,23,1],[32,6,32,9],[8,2,11,2],[8,3,11,3],[8,5,11,5],[8,9,11,9],[24,1,32,1],[8,10,11,11],[10,6,11,6],[47,6,48,8],[9,6,9,8],[26,13,26,16],[27,13,27,16],[28,13,28,16],[24,17,24,18],[25,17,25,18],[24,13,24,16],[9,17,11,18],[22,17,23,18],[22,13,23,16],[18,13,18,16],[9,13,11,13],[9,14,11,14],[10,15,11,15],[10,16,11,16],[9,15,9,16],[25,13,25,16]]}
[null,"注意１：","「一般の生命保険料」「介護医療保障料」「個人年金保険料」「地震保険料」「社会保険料」の各欄は、行を飛ばさず上から順に入力してください。"]
[null,"注意２：","以下の５つの条件すべてを満たす場合は、「申告書」のみの印刷されます。ひとつでも満たさない場合は、「申告書」の他に「内訳書」も印刷されるので、一緒に提出してください。"]
[null," ① 一般の生命保険料が４行以内 ⇒",null,null,{"$f":"IF(COUNT(K13:K22)>4,\"×\",\"◎\")","v":"◎"}]
[null," ② 介護医療保険料が２行以内 ⇒⇒",null,null,{"$f":"IF(COUNT(K25:K32)>2,\"×\",\"◎\")","v":"◎"},{"$f":"IF(COUNTIF(E3:E7,\"×\")=0,\"「申告書」のみ\",\"「申告書」と「内訳書」の両方\")&\"\n印刷されます。\"","v":"「申告書」のみ\n印刷されます。"}]
[null," ③ 個人年金保険料が３行以内 ⇒⇒",null,null,{"$f":"IF(COUNT(K34:K41)>3,\"×\",\"◎\")","v":"◎"}]
[null," ④ 地震保険料が２行以内 ⇒⇒⇒⇒",null,null,{"$f":"IF(COUNT(K44:K47)>2,\"×\",\"◎\")","v":"◎"}]
[null," ⑤ 社会保険料が２行以内 ⇒⇒⇒⇒",null,null,{"$f":"IF(COUNT(R13:R18)>2,\"×\",\"◎\")","v":"◎"},null,null,null,null," … 直接入力のセル",null,null,null,null," … リスト選択のセル（リストにないものは直接入力してください）"]
[null,null,{"$f":"IF(TOP!H8=\"\",\"\",TOP!H8&\"　\")&IF(TOP!H6=\"\",\"\",TOP!H6&\"　の別紙内訳書\")","v":""}]
[null,null,"保険会社等\nの名称","保険等の\n種類","保険期間","保険等の\n契約者の氏名","生保：保険金等の受取人",null,null,"区分","あなたが本年中に支払った保険料等の金額（分配を受けた剰余金等の控除後の金額）",null,null,"社会保険料"]
[null,null,null,null,"又は",null,"地震：対象家屋の居住者、家財の利用者",null,null,null,null,null,null,"社会保険\nの種類","保険料\n支払先\nの名称","保険料を負担することになっている人",null,"あなたが本年中に支払った保険料の金額　",null,null,{"$f":"IF(COUNTIF(E3:E7,\"×\")=0,\"「申告書」のみ印刷\",\"「申告書」と「内訳書」、両方印刷\")","v":"「申告書」のみ印刷"}]
[null,null,null,null,"年金支払",null,"氏　　　　名","あなたと\nの 続 柄","支払開始日",null,null,null,null,null,null,"氏　　　　名","あなたと\nの 続 柄"]
[null,null,null,null,"期間",null,null,null,"（個人年金のみ）"]
[null,"一般の生命保険料",null,null,null,null,null,null,null,null,null,"円",null,null,null,null,null,null,"円"]
[null,null,null,null,null,null,null,null,null,null,null,"円",null,null,null,null,null,null,"円"]
[null,null,null,null,null,null,null,null,null,null,null,"円",null,null,null,null,null,null,"円"]
[null,null,null,null,null,null,null,null,null,null,null,"円",null,null,null,null,null,null,"円"]
[null,null,null,null,null,null,null,null,null,null,null,"円",null,null,null,null,null,null,"円"]
[null,null,null,null,null,null,null,null,null,null,null,"円",null,null,null,null,null,null,"円"]
[null,null,null,null,null,null,null,null,null,null,null,"円",null,{"$f":"N9&\"の計\"","v":"社会保険料の計"},null,null,null,{"$f":"SUM(R13:R18)","v":0},"円"]
[null,null,null,null,null,null,null,null,null,null,null,"円"]
[null,null,null,null,null,null,null,null,null,null,null,"円"]
[null,null,null,null,null,null,null,null,null,null,null,"円",null,"小規模企業共済等掛金"]
[null,null,null,null,null,null,{"$f":"B13&\"の計\"","v":"一般の生命保険料の計"},null,null,"新",{"$f":"SUMIF($J$13:$J$22,J23,$K$13:$K$22)","v":0},"円",null,"種類",null,null,null,"あなたが本年中に支払った掛金の金額　"]
[null,null,null,null,null,null,null,null,null,"旧",{"$f":"SUMIF($J$13:$J$22,J24,$K$13:$K$22)","v":0},"円"]
[null,"介護医療保険料",null,null,null,null,null,null,null,null,null,"円",null,"独立行政法人中小企業基盤機構の共済契約の掛金※１"]
[null,null,null,null,null,null,null,null,null,null,null,"円",null,"確定拠出年金法に規定する企業型年金加入者掛金※１"]
[null,null,null,null,null,null,null,null,null,null,null,"円",null,"確定拠出年金法に規定する個人型年金加入者掛金※２",null,null,null,null,"円"]
[null,null,null,null,null,null,null,null,null,null,null,"円",null,"心身障害者扶養共済制度に関する契約の掛金※３",null,null,null,null,"円"]
[null,null,null,null,null,null,null,null,null,null,null,"円",null,{"$f":"N22&\"の計\"","v":"小規模企業共済等掛金の計"},null,null,null,{"$f":"SUM(R25:R28)","v":0},"円"]
[null,null,null,null,null,null,null,null,null,null,null,"円",null,"※１　","公務員が加入することはありません"]
[null,null,null,null,null,null,null,null,null,null,null,"円",null,"※２　","iDeCo（イデコ）のことです"]
[null,null,null,null,null,null,null,null,null,null,null,"円",null,"※３　","障害者を扶養している保護者が毎月一定の掛金を納め"]
[null,null,null,null,null,null,{"$f":"B25&\"の計\"","v":"介護医療保険料の計"},null,null,null,{"$f":"SUM(K25:K32)","v":0},"円",null,null,"ることで、保護者に万一のことがあったときに障害の"]
[null,"個人年金保険料",null,null,null,null,null,null,null,null,null,"円",null,null,"ある方に年金が支給される制度です"]
[null,null,null,null,null,null,null,null,null,null,null,"円"]
[null,null,null,null,null,null,null,null,null,null,null,"円"]
[null,null,null,null,null,null,null,null,null,null,null,"円"]
[null,null,null,null,null,null,null,null,null,null,null,"円"]
[null,null,null,null,null,null,null,null,null,null,null,"円"]
[null,null,null,null,null,null,null,null,null,null,null,"円"]
[null,null,null,null,null,null,null,null,null,null,null,"円"]
[null,null,null,null,null,null,{"$f":"B34&\"の計\"","v":"個人年金保険料の計"},null,null,"新",{"$f":"SUMIF($J$34:$J$41,J42,$K$34:$K$41)","v":0},"円"]
[null,null,null,null,null,null,null,null,null,"旧",{"$f":"SUMIF($J$34:$J$41,J43,$K$34:$K$41)","v":0},"円"]
[null,"地震保険料",null,null,null,null,null,null,null,null,null,"円"]
[null,null,null,null,null,null,null,null,null,null,null,"円"]
[null,null,null,null,null,null,null,null,null,null,null,"円"]
[null,null,null,null,null,null,null,null,null,null,null,"円"]
[null,null,null,null,null,null,"地震保険料の計",null,null,"地   震",{"$f":"SUMIF($J$44:$J$47,J48,$K$44:$K$47)","v":0},"円"]
[null,null,null,null,null,null,null,null,null,"旧長期",{"$f":"SUMIF($J$44:$J$47,J49,$K$44:$K$47)","v":0},"円"]

{"sheet":"基礎・配偶者・調整控除申告書","index":3,"n_rows":87,"n_cols":114,"rows_kept":87,"cut":false,"hidden":false,"merged":[[70,0,89,0],[79,93,81,94],[16,79,18,114],[64,52,65,55],[64,56,65,59],[64,60,65,63],[64,64,65,68],[82,9,83,26],[84,9,85,26],[78,27,79,38],[80,27,81,38],[82,27,83,38],[84,27,85,38],[35,5,36,29],[35,30,36,44],[58,27,59,29],[60,27,61,29],[60,10,61,15],[64,8,65,9],[64,30,65,33],[46,110,48,112],[46,85,50,86],[46,73,50,84],[61,105,62,114],[3,106,3,113],[79,80,81,84],[84,42,85,57],[78,58,78,79],[82,58,83,79],[79,58,81,79],[84,58,85,79],[62,74,63,78],[62,79,63,83],[82,80,83,86],[84,80,85,86],[78,80,78,94],[79,85,81,86],[79,87,81,88],[79,89,81,90],[79,91,81,92],[65,43,67,44],[64,94,65,98],[60,94,61,98],[49,110,51,112],[58,105,60,112],[71,29,73,115],[63,113,65,114],[51,85,53,86],[66,30,67,33],[80,7,81,8],[66,94,67,98],[66,99,67,103],[78,7,79,8],[64,50,65,51],[64,19,65,26],[66,16,67,18],[58,19,59,26],[60,19,61,26],[62,19,63,26],[62,27,63,29],[64,27,65,29],[63,35,64,44],[65,35,67,42],[56,30,63,33],[56,35,57,44],[56,19,57,26],[58,35,60,44],[56,27,57,29],[66,19,67,26],[78,9,79,26],[80,9,81,26],[58,52,61,55],[82,7,83,8],[84,7,85,8],[78,42,81,57],[82,42,83,57],[54,48,55,59],[62,94,63,98],[60,84,61,88],[62,84,63,88],[62,89,63,93],[72,5,73,28],[62,52,63,55],[62,56,63,59],[62,60,63,63],[62,64,63,68],[62,69,63,73],[64,84,65,88],[61,35,61,44],[68,48,69,51],[68,52,69,59],[68,60,69,103],[64,89,65,93],[66,27,67,29],[62,99,63,103],[60,99,61,103],[63,105,65,112],[58,64,59,103],[60,64,61,68],[60,69,61,73],[58,60,61,63],[56,52,57,103],[64,74,65,78],[56,105,57,114],[58,113,60,114],[62,50,63,51],[64,69,65,73],[54,5,55,16],[39,30,40,44],[39,94,42,109],[43,94,45,109],[46,59,50,72],[51,48,53,72],[41,30,45,42],[41,43,45,44],[64,99,65,103],[64,79,65,83],[62,48,67,49],[66,74,67,78],[66,79,67,83],[66,84,67,88],[66,89,67,93],[66,50,67,51],[66,52,67,55],[66,56,67,59],[66,60,67,63],[66,64,67,68],[66,69,67,73],[41,59,45,70],[41,73,45,84],[37,48,38,79],[41,48,45,49],[41,50,45,58],[43,110,45,112],[58,56,61,59],[60,74,61,78],[43,92,45,93],[46,92,48,93],[49,92,51,93],[60,79,61,83],[60,89,61,93],[56,48,61,51],[46,50,50,58],[46,94,48,109],[49,94,51,109],[39,90,51,91],[51,73,53,74],[51,75,53,84],[52,106,53,114],[52,90,53,97],[52,98,53,105],[46,113,51,114],[39,92,42,93],[39,110,42,112],[51,30,53,42],[41,5,45,6],[41,7,45,15],[41,16,45,27],[41,28,45,29],[26,48,30,69],[46,16,50,29],[37,5,38,36],[39,5,40,15],[39,16,40,29],[46,30,50,42],[46,43,50,44],[51,5,53,29],[51,43,53,44],[29,4,30,5],[46,48,50,49],[26,94,27,114],[31,94,32,100],[31,101,32,114],[31,48,32,69],[31,70,32,93],[29,6,34,45],[41,71,45,72],[41,85,45,86],[28,70,30,93],[25,5,26,6],[20,48,25,114],[28,103,30,106],[28,107,30,108],[28,109,30,112],[28,113,30,114],[28,94,30,100],[28,101,30,102],[26,70,27,93],[21,7,24,45],[25,7,28,45],[19,6,20,45],[19,4,20,5],[21,5,22,6],[33,48,36,69],[33,70,36,93],[33,94,36,100],[33,101,36,114],[39,48,40,58],[39,73,40,86],[39,59,40,72],[39,113,45,114],[13,13,15,24],[13,25,15,54],[13,55,15,63],[13,64,15,97],[56,10,57,15],[58,10,59,15],[56,5,67,7],[56,8,57,9],[58,8,59,9],[60,8,61,9],[62,8,63,9],[66,8,67,9],[17,4,18,29],[62,10,63,15],[64,10,65,15],[56,16,57,18],[58,16,59,18],[60,16,61,18],[62,16,63,18],[64,16,65,18],[66,10,67,15],[46,5,50,6],[46,7,50,15],[17,47,18,77],[72,2,87,2],[86,5,87,114],[4,4,6,115],[9,100,12,113],[14,4,15,12],[7,4,8,12],[9,4,13,12],[74,5,77,114],[78,5,85,6],[78,40,85,41],[78,96,85,97],[78,98,79,114],[80,98,85,114],[7,13,9,24],[7,25,9,54],[7,55,12,63],[7,64,8,94],[84,87,85,92],[84,93,85,94],[82,87,83,94],[9,64,12,94],[9,95,12,97],[10,13,12,24],[10,25,12,54]]}
[]
[null,null,null,null,null,null,null,null,null,null,null,null,null,null,null,null,null,null,null,null,null,null,null,null,null,null,null,null,null,null,null,null,null,null,null,null,null,null,null,null,null,null,null,null,null,null,null,null,null,null,null,null,null,null,null,null,null,null,null,null,null,null,null," … 直接入力のセル",null,null,null,null,null,null,null,null,null,null,null,null,null,null,null,null,null,null,null,null,null,null,null," … リスト選択のセル"]
[]
[null,null,null,null,null,null,{"$f":"\"所　属　：　\"&IF(TOP!H10=\"\",\"\",TOP!H10)&IF(TOP!I10=\"\",\"\",TOP!I10)&IF(TOP!J10=\"\",\"\",TOP!J10)","v":"所　属　：　静岡市立"},null,null,null,null,null,null,null,null,null,null,null,null,null,null,null,null,null,null,null,null,null,null,null,null,null,null,null,null,null,null,null,null,null,null,null,null,null,null,null,null,null,null,null,null,null,null,null,null,null,null,null,null,{"$f":"\"氏　名　：　\"&IF(TOP!H6=\"\",\"\",TOP!H6)","v":"氏　名　：　"},null,null,null,null,null,null,null,null,null,null,null,null,null,null,null,null,null,null,null,null,null,null,null,null,null,null,null,null,null,null,null,null,null,null,null,null,null,null,null,null,null,null,null,null,null,"職　員　番　号　：　",{"$f":"IF(TOP!H8=\"\",\"\",TOP!H8)","v":""}]
[null,null,null,null,"令和２年分　給与所得者の基礎控除申告書 兼 給与所得者の配偶者控除等申告書 兼 所得金額調整控除申告書"]
[]
[]
[null,null,null,null," 所轄税務署長",null,null,null,null,null,null,null,null,"給与の支払者の\n名称（氏名）",null,null,null,null,null,null,null,null,null,null,null,{"$f":"IF(TOP!C7=\"\",\"\",TOP!C7)","v":"静岡市役所　静岡市長　田辺信宏\n（静岡市教育委員会）"},null,null,null,null,null,null,null,null,null,null,null,null,null,null,null,null,null,null,null,null,null,null,null,null,null,null,null,null,null,"（フリガナ）\nあなたの氏名",null,null,null,null,null,null,null,null,{"$f":"IF(TOP!H7=\"\",\"\",TOP!H7)","v":""}]
[]
[null,null,null,null,{"$f":"IF(TOP!C6=\"\",\"\",TOP!C6)","v":"静岡"},null,null,null,null,null,null,null,null,null,null,null,null,null,null,null,null,null,null,null,null,null,null,null,null,null,null,null,null,null,null,null,null,null,null,null,null,null,null,null,null,null,null,null,null,null,null,null,null,null,null,null,null,null,null,null,null,null,null,null,{"$f":"IF(TOP!H6=\"\",\"\",TOP!H6)","v":""},null,null,null,null,null,null,null,null,null,null,null,null,null,null,null,null,null,null,null,null,null,null,null,null,null,null,null,null,null,null,"㊞",null,null,null,null,"基・配・所"]
[null,null,null,null,null,null,null,null,null,null,null,null,null,"給与の支払者の\n法人番号",null,null,null,null,null,null,null,null,null,null,null,{"$f":"IF(TOP!C8=\"\",\"\",TOP!C8)","v":"8000020221007"}]
[]
[]
[null,null,null,null,null,null,null,null,null,null,null,null,null,"給与の支払者の\n所在地（住所）",null,null,null,null,null,null,null,null,null,null,null,"静岡市葵区追手町５番１号",null,null,null,null,null,null,null,null,null,null,null,null,null,null,null,null,null,null,null,null,null,null,null,null,null,null,null,null,null,"あなたの住所\n又は居所",null,null,null,null,null,null,null,null,{"$f":"IF(TOP!H9=\"\",\"\",TOP!H9)","v":""}]
[null,null,null,null,"税務署長"]
[]
[null,null,null,null,null,null,null,null,null,null,null,null,null,null,null,null,null,null,null,null,null,null,null,null,null,null,null,null,null,null,null,null,null,null,null,null,null,null,null,null,null,null,null,null,null,null,null,null,null,null,null,null,null,null,null,null,null,null,null,null,null,null,null,null,null,null,null,null,null,null,null,null,null,null,null,null,null,null,null,{"$f":"IF(AL2=1,\"\",IF(AJ59=\"1,000万円超です\",\"区分ⅠがA～Cに該当しないので申告不要です\",区分2判定!E3))","v":""}]
[null,null,null,null,"～記載に当たってのご注意～",null,null,null,null,null,null,null,null,null,null,null,null,null,null,null,null,null,null,null,null,null,null,null,null,null,null,null,null,null,null,null,null,null,null,null,null,null,null,null,null,null,null,"◆ 給与所得者の配偶者控除等申告書 ◆"]
[]
[null,null,null,null,"◎",null,"「基礎控除申告書」と「配偶者控除等申告書」については、次の場合に応じて記載してください。"]
[null,null,null,null,null,null,null,null,null,null,null,null,null,null,null,null,null,null,null,null,null,null,null,null,null,null,null,null,null,null,null,null,null,null,null,null,null,null,null,null,null,null,null,null,null,null,null,null,"○　「控除額の計算」の表の「区分Ⅰ」欄については、「基礎控除申告書」の「区分Ⅰ」欄を参照してください。\n\n○　「基礎控除申告書」の「区分Ⅰ」欄が(Ａ)～(Ｃ)に該当しない場合や「配偶者控除等申告書」の「区分Ⅱ」欄が①～④に該当しない場合は、配偶者控除及び\n   配偶者特別控除の適用を受けることはできません。"]
[null,null,null,null,null,"１",null,"　あなたの本年中の合計所得金額の見積額が1,000万円以下で、かつ、配偶者の本年中の合計所得金額の見積額が133万円以下である場合は、「基礎控除申告書」、「配偶者控除等申告書」の順に記載してください。"]
[]
[]
[]
[null,null,null,null,null,"２",null,"　上記１以外で、かつ、あなたの本年中の合計所得金額の見積額が2,500万円以下である場合は、「基礎控除申告書」のみ記載してください（「配偶者控除等申告書」を記載する必要はありません。）。"]
[null,null,null,null,null,null,null,null,null,null,null,null,null,null,null,null,null,null,null,null,null,null,null,null,null,null,null,null,null,null,null,null,null,null,null,null,null,null,null,null,null,null,null,null,null,null,null,null,"（フリガナ）\n配偶者の氏名",null,null,null,null,null,null,null,null,null,null,null,null,null,null,null,null,null,null,null,null,null,"配偶者の個人番号",null,null,null,null,null,null,null,null,null,null,null,null,null,null,null,null,null,null,null,null,null,null,null,"配偶者の生年月日"]
[]
[null,null,null,null,null,null,null,null,null,null,null,null,null,null,null,null,null,null,null,null,null,null,null,null,null,null,null,null,null,null,null,null,null,null,null,null,null,null,null,null,null,null,null,null,null,null,null,null,null,null,null,null,null,null,null,null,null,null,null,null,null,null,null,null,null,null,null,null,null,null,null,null,null,null,null,null,null,null,null,null,null,null,null,null,null,null,null,null,null,null,null,null,null,null,null,null,null,null,null,null,null,"年",null,null,null,null,null,"月",null,null,null,null,null,"日"]
[null,null,null,null,"◎",null,"　「所得金額調整控除申告書」については、年末調整において所得金額調整控除の適用を受けようとする場合に記載してください。なお、あなたの本年中の年末調整の対象となる給与の収入金額が850万円以下である場合又は「所得金額調整控除申告書」の「要件」欄の各項目のいずれにも該当しない場合には、所得金額調整控除の適用を受けることはできません。"]
[]
[null,null,null,null,null,null,null,null,null,null,null,null,null,null,null,null,null,null,null,null,null,null,null,null,null,null,null,null,null,null,null,null,null,null,null,null,null,null,null,null,null,null,null,null,null,null,null,null,null,null,null,null,null,null,null,null,null,null,null,null,null,null,null,null,null,null,null,null,null,null,"あなたと配偶者の住所又は居所が\n異なる場合の配偶者の住所又は居所",null,null,null,null,null,null,null,null,null,null,null,null,null,null,null,null,null,null,null,null,null,null,null,"非居住者で\nある配偶者",null,null,null,null,null,null,"生計を一にする事実"]
[]
[]
[]
[null,null,null,null,null,"◆ 給与所得者の基礎控除申告書 ◆",null,null,null,null,null,null,null,null,null,null,null,null,null,null,null,null,null,null,null,null,null,null,null,null,{"$f":"IF(AL2=1,\"\",IF(OR(COUNT(AE42:AQ51)=0,COUNTIF(AE42:AQ51,\"*入力\")>0),\"最初にここを入力！\",\"\"))","v":"最初にここを入力！"}]
[]
[null,null,null,null,null,"○ あなたの本年中の合計所得金額の見積額の計算",null,null,null,null,null,null,null,null,null,null,null,null,null,null,null,null,null,null,null,null,null,null,null,null,null,null,null,null,null,null,null,null,null,null,null,null,null,null,null,null,null,null,"○ 配偶者の本年中の合計所得金額の見積額の計算"]
[]
[null,null,null,null,null,"所得の種類",null,null,null,null,null,null,null,null,null,null,"収入金額",null,null,null,null,null,null,null,null,null,null,null,null,null,"所得金額",null,null,null,null,null,null,null,null,null,null,null,null,null,null,null,null,null,"所得の種類",null,null,null,null,null,null,null,null,null,null,"収入金額",null,null,null,null,null,null,null,null,null,null,null,null,null,"所得金額",null,null,null,null,null,null,null,null,null,null,null,null,null,null,null,null,"判定",null,{"$f":"IF($CU$53=\"①\",\"■\",\"□\")","v":"□"},null,"48万円以下かつ年齢70歳以上\n（昭26.1.1以前生）\n《老人控除対象配偶者に該当》",null,null,null,null,null,null,null,null,null,null,null,null,null,null,null,"（①）",null,null,"配偶者控除"]
[]
[null,null,null,null,null,"⑴",null,"給与所得",null,null,null,null,null,null,null,null,null,null,null,null,null,null,null,null,null,null,null,null,"円",null,{"$f":"IF(Q42=\"\",\"\",あなたの合計所得金額計算!C2)","v":""},null,null,null,null,null,null,null,null,null,null,null,null,"円",null,null,null,null,"⑴",null,"給与所得",null,null,null,null,null,null,null,null,null,null,null,null,null,null,null,null,null,null,null,null,"円",null,{"$f":"IF(BH42=\"\",\"\",配偶者の合計所得金額計算!C2)","v":""},null,null,null,null,null,null,null,null,null,null,null,"円"]
[]
[null,null,null,null,null,null,null,null,null,null,null,null,null,null,null,null,null,null,null,null,null,null,null,null,null,null,null,null,null,null,null,null,null,null,null,null,null,null,null,null,null,null,null,null,null,null,null,null,null,null,null,null,null,null,null,null,null,null,null,null,null,null,null,null,null,null,null,null,null,null,null,null,null,null,null,null,null,null,null,null,null,null,null,null,null,null,null,null,null,null,null,null,{"$f":"IF($CU$53=\"②\",\"■\",\"□\")","v":"□"},null,"48万円以下かつ年齢70歳未満",null,null,null,null,null,null,null,null,null,null,null,null,null,null,null,"（②）"]
[]
[]
[null,null,null,null,null,"⑵",null,"給与所得以外\nの所得の合計額",null,null,null,null,null,null,null,null,null,null,null,null,null,null,null,null,null,null,null,null,null,null,null,null,null,null,null,null,null,null,null,null,null,null,null,"円",null,null,null,null,"⑵",null,"給与所得以外\nの所得の合計額",null,null,null,null,null,null,null,null,null,null,null,null,null,null,null,null,null,null,null,null,null,null,null,null,null,null,null,null,null,null,null,null,null,null,"円",null,null,null,null,null,null,{"$f":"IF($CU$53=\"③\",\"■\",\"□\")","v":"□"},null,"48万円超95万円以下",null,null,null,null,null,null,null,null,null,null,null,null,null,null,null,"（③）",null,null,"配偶者特別控除"]
[]
[]
[null,null,null,null,null,null,null,null,null,null,null,null,null,null,null,null,null,null,null,null,null,null,null,null,null,null,null,null,null,null,null,null,null,null,null,null,null,null,null,null,null,null,null,null,null,null,null,null,null,null,null,null,null,null,null,null,null,null,null,null,null,null,null,null,null,null,null,null,null,null,null,null,null,null,null,null,null,null,null,null,null,null,null,null,null,null,null,null,null,null,null,null,{"$f":"IF($CU$53=\"④\",\"■\",\"□\")","v":"□"},null,"95万円超133万円以下",null,null,null,null,null,null,null,null,null,null,null,null,null,null,null,"（④）"]
[]
[null,null,null,null,null,"あなたの本年中の合計所得金額の見積額\n（⑴と⑵の合計額）",null,null,null,null,null,null,null,null,null,null,null,null,null,null,null,null,null,null,null,null,null,null,null,null,{"$f":"IF(OR(COUNT(AE42:AQ51)=0,COUNTIF(AE42:AQ51,\"*入力\")>0),\"\",IF(SUM(AE42:AQ51)<0,0,SUM(AE42:AQ51)))","v":""},null,null,null,null,null,null,null,null,null,null,null,null,"円",null,null,null,null,"配偶者の本年中の合計所得金額の見積額\n（⑴と⑵の合計額）",null,null,null,null,null,null,null,null,null,null,null,null,null,null,null,null,null,null,null,null,null,null,null,null,"＊",null,{"$f":"IF(OR(COUNT(BV42:CG51)=0,COUNTIF(BV42:CG51,\"*入力\")>0),\"\",IF(SUM(BV42:CG51)<0,0,SUM(BV42:CG51)))","v":""},null,null,null,null,null,null,null,null,null,"円"]
[null,null,null,null,null,null,null,null,null,null,null,null,null,null,null,null,null,null,null,null,null,null,null,null,null,null,null,null,null,null,null,null,null,null,null,null,null,null,null,null,null,null,null,null,null,null,null,null,null,null,null,null,null,null,null,null,null,null,null,null,null,null,null,null,null,null,null,null,null,null,null,null,null,null,null,null,null,null,null,null,null,null,null,null,null,null,null,null,null,null,"区分Ⅱ",null,null,null,null,null,null,null,{"$f":"IF(AJ59=\"1,000万円超です\",\"\",区分2判定!E2)","v":""},null,null,null,null,null,null,null,"（上の①～④を記載）"]
[]
[null,null,null,null,null,"○ 控除額の計算",null,null,null,null,null,null,null,null,null,null,null,null,null,null,null,null,null,null,null,null,null,null,null,null,null,null,null,null,null,null,null,null,null,null,null,null,null,null,null,null,null,null,"○ 控除額の計算"]
[]
[null,null,null,null,null,"判定",null,null,{"$f":"IF(AE52<=9000000,\"■\",\"□\")","v":"□"},null,"900万円",null,null,null,null,null,"以下",null,null,null,null,null,null,null,null,null,null,"（Ａ）",null,null,"48万円",null,null,null,null,"区分Ⅰ",null,null,null,null,null,null,null,null,null,null,null,null,null,null,null,null,"区分Ⅱ",null,null,null,null,null,null,null,null,null,null,null,null,null,null,null,null,null,null,null,null,null,null,null,null,null,null,null,null,null,null,null,null,null,null,null,null,null,null,null,null,null,null,null,null,null,null,null,null,null,null,null,null,"配偶者控除の額"]
[]
[null,null,null,null,null,null,null,null,{"$f":"IF(AND(AE52>9000000,AE52<=9500000),\"■\",\"□\")","v":"□"},null,"900万円",null,null,null,null,null,"超",null,null,"950万円以下",null,null,null,null,null,null,null,"（Ｂ）",null,null,null,null,null,null,null,{"$f":"区分１判定!D2","v":""},null,null,null,null,null,null,null,null,null,null,null,null,null,null,null,null,"①",null,null,null,"②",null,null,null,"③",null,null,null,"④（上記「配偶者の本年中の合計所得金額の見積額（⑴と⑵の合計額）」（＊印の金額））",null,null,null,null,null,null,null,null,null,null,null,null,null,null,null,null,null,null,null,null,null,null,null,null,null,null,null,null,null,null,null,null,null,null,null,null,null,null,null,null,{"$f":"'配偶者（特別）控除の額'!D2","v":""},null,null,null,null,null,null,null,"円"]
[]
[null,null,null,null,null,null,null,null,{"$f":"IF(AND(AE52>9500000,AE52<=10000000),\"■\",\"□\")","v":"□"},null,"950万円",null,null,null,null,null,"超",null,null,"1,000万円以下",null,null,null,null,null,null,null,"（Ｃ）",null,null,null,null,null,null,null,null,null,null,null,null,null,null,null,null,null,null,null,null,null,null,null,null,null,null,null,null,null,null,null,null,null,null,null,null,"95万円超\n100万円以下",null,null,null,null,"100万円超\n105万円以下",null,null,null,null,"105万円超\n110万円以下",null,null,null,null,"110万円超\n115万円以下",null,null,null,null,"115万円超\n120万円以下",null,null,null,null,"120万円超\n125万円以下",null,null,null,null,"125万円超\n130万円以下",null,null,null,null,"130万円超\n133万円以下"]
[null,null,null,null,null,null,null,null,null,null,null,null,null,null,null,null,null,null,null,null,null,null,null,null,null,null,null,null,null,null,null,null,null,null,null,"（左のＡ～Ｃを記載）",null,null,null,null,null,null,null,null,null,null,null,null,null,null,null,null,null,null,null,null,null,null,null,null,null,null,null,null,null,null,null,null,null,null,null,null,null,null,null,null,null,null,null,null,null,null,null,null,null,null,null,null,null,null,null,null,null,null,null,null,null,null,null,null,null,null,null,null,null,"配偶者特別控除の額"]
[null,null,null,null,null,null,null,null,{"$f":"IF(AND(AE52>10000000,AE52<=24000000),\"■\",\"□\")","v":"□"},null,"1,000万円",null,null,null,null,null,"超",null,null,"2,400万円以下",null,null,null,null,null,null,null,null,null,null,null,null,null,null,null,null,null,null,null,null,null,null,null,null,null,null,null,null,"区分Ⅰ",null,"Ａ",null,"48万円",null,null,null,"38万円",null,null,null,"38万円",null,null,null,"36万円",null,null,null,null,"31万円",null,null,null,null,"26万円",null,null,null,null,"21万円",null,null,null,null,"16万円",null,null,null,null,"11万円",null,null,null,null,"6万円",null,null,null,null,"3万円"]
[null,null,null,null,null,null,null,null,null,null,null,null,null,null,null,null,null,null,null,null,null,null,null,null,null,null,null,null,null,null,null,null,null,null,null,"基礎控除の額",null,null,null,null,null,null,null,null,null,null,null,null,null,null,null,null,null,null,null,null,null,null,null,null,null,null,null,null,null,null,null,null,null,null,null,null,null,null,null,null,null,null,null,null,null,null,null,null,null,null,null,null,null,null,null,null,null,null,null,null,null,null,null,null,null,null,null,null,null,{"$f":"'配偶者（特別）控除の額'!E2","v":""},null,null,null,null,null,null,null,"円"]
[null,null,null,null,null,null,null,null,{"$f":"IF(AND(AE52>24000000,AE52<=24500000),\"■\",\"□\")","v":"□"},null,"2,400万円",null,null,null,null,null,"超",null,null,"2,450万円以下",null,null,null,null,null,null,null,null,null,null,"32万円",null,null,null,null,null,null,null,null,null,null,null,null,null,null,null,null,null,null,null,"Ｂ",null,"32万円",null,null,null,"26万円",null,null,null,"26万円",null,null,null,"24万円",null,null,null,null,"21万円",null,null,null,null,"18万円",null,null,null,null,"14万円",null,null,null,null,"11万円",null,null,null,null,"8万円",null,null,null,null,"4万円",null,null,null,null,"2万円"]
[null,null,null,null,null,null,null,null,null,null,null,null,null,null,null,null,null,null,null,null,null,null,null,null,null,null,null,null,null,null,null,null,null,null,null,{"$f":"IF(AE52=\"\",\"\",IF(AE52<=24000000,480000,IF(AE52<=24500000,320000,IF(AE52<=25000000,160000,0))))","v":""},null,null,null,null,null,null,null,"円"]
[null,null,null,null,null,null,null,null,{"$f":"IF(AND(AE52>24500000,AE52<=25000000),\"■\",\"□\")","v":"□"},null,"2,450万円",null,null,null,null,null,"超",null,null,"2,500万円以下",null,null,null,null,null,null,null,null,null,null,"16万円",null,null,null,null,null,null,null,null,null,null,null,null,null,null,null,null,null,null,null,"Ｃ",null,"16万円",null,null,null,"13万円",null,null,null,"13万円",null,null,null,"12万円",null,null,null,null,"11万円",null,null,null,null,"9万円",null,null,null,null,"7万円",null,null,null,null,"6万円",null,null,null,null,"4万円",null,null,null,null,"2万円",null,null,null,null,"1万円",null,null,null,null,null,"※　左の「控除額の計算」の表"]
[null,null,null,null,null,null,null,null,null,null,null,null,null,null,null,null,null,null,null,null,null,null,null,null,null,null,null,null,null,null,null,null,null,null,null,null,null,null,null,null,null,null,null,null,null,null,null,null,null,null,null,null,null,null,null,null,null,null,null,null,null,null,null,null,null,null,null,null,null,null,null,null,null,null,null,null,null,null,null,null,null,null,null,null,null,null,null,null,null,null,null,null,null,null,null,null,null,null,null,null,null,null,null,null,null,"   を参考に記載してください。"]
[null,null,null,null,null,null,null,null,null,null,null,null,null,null,null,null,null,null,null,null,null,null,null,null,null,null,null,null,null,null,null,null,null,null,null,"※　左の「控除額の計算」の表",null,null,null,null,null,null,null,null,null,null,null,null,"摘要",null,null,null,"配偶者控除",null,null,null,null,null,null,null,"配偶者特別控除"]
[null,null,null,null,null,null,null,null,null,null,null,null,null,null,null,null,null,null,null,null,null,null,null,null,null,null,null,null,null,null,null,null,null,null,null,"   を参考に記載してください。"]
[{"$f":"IF(AE52=\"\",\"\",IF(Q42<=8500000,\"あなたの給与収入の見積額が850万円以下なので、申告は不要ですが、超えるかもしれない微妙な額で、該当がある場合は申告してください\",\"\"))","v":""}]
[null,null,null,null,null,null,null,null,null,null,null,null,null,null,null,null,null,null,null,null,null,null,null,null,null,null,null,null,null,{"$f":"IF(AL2=1,\"\",IF(AE52=\"\",\"\",IF(Q42<=8500000,\"あなたの給与収入の見積額が850万円以下なので申告は不要ですが、超えるかもしれない微妙な額で、該当がある場合は申告してください\",\"\")))","v":""}]
[null,null,null,null,null,"◆ 所得金額調整控除申告書 ◆"]
[]
[null,null,null,null,null,"○　年末調整において所得金額調整控除の適用を受けようとする場合は、「要件」欄の該当する項目にチェックを付け、その項目に応じて「☆扶養親族等」欄及び「★特別障害者」欄にその該当する者について記載してください。\n　　 なお、「要件」欄の２以上の項目に該当する場合は、いずれか１つの要件について、チェックを付け記載をすることで差し支えありません。\n○　年末調整における所得金額調整控除の額については給与の支払者が計算しますので、この申告書に所得金額調整控除の額を記載する欄はありません。"]
[]
[]
[]
[null,null,null,null,null,"要件",null,null,null,"あなた自身が特別障害者",null,null,null,null,null,null,null,null,null,null,null,null,null,null,null,null,null,"（右の★欄のみを記載）",null,null,null,null,null,null,null,null,null,null,null,null,"☆扶養親族等",null,"（フリガナ）\n同一生計配偶者又は扶養親族の氏名",null,null,null,null,null,null,null,null,null,null,null,null,null,null,null,"左記の者の個人番号",null,null,null,null,null,null,null,null,null,null,null,null,null,null,null,null,null,null,null,null,null,"左記の者の生年月日",null,null,null,null,null,null,null,null,null,null,null,null,null,null,null,"★特別障害者",null,"特別障害者に該当する事実"]
[null,null,null,null,null,null,null,null,null,null,null,null,null,null,null,null,null,null,null,null,null,null,null,null,null,null,null,null,null,null,null,null,null,null,null,null,null,null,null,null,null,null,null,null,null,null,null,null,null,null,null,null,null,null,null,null,null,null,null,null,null,null,null,null,null,null,null,null,null,null,null,null,null,null,null,null,null,null,null,null,null,null,null,null,null,"年",null,null,null,"月",null,null,null,"日"]
[null,null,null,null,null,null,null,null,null,"同一生計配偶者（注）が特別障害者",null,null,null,null,null,null,null,null,null,null,null,null,null,null,null,null,null,"（右の☆欄及び★欄を記載）"]
[]
[null,null,null,null,null,null,null,null,null,"扶養親族が特別障害者",null,null,null,null,null,null,null,null,null,null,null,null,null,null,null,null,null,"（右の☆欄及び★欄を記載）",null,null,null,null,null,null,null,null,null,null,null,null,null,null,null,null,null,null,null,null,null,null,null,null,null,null,null,null,null,null,"あなたと左記の者の住所又は居所が\n異なる場合の左記の者の住所又は居所",null,null,null,null,null,null,null,null,null,null,null,null,null,null,null,null,null,null,null,null,null,"左記の者の\nあなたとの続柄",null,null,null,null,null,null,"左記の者の合計\n所得金額(見積額)"]
[]
[null,null,null,null,null,null,null,null,null,"扶養親族が年齢23歳未満（平10.1.2以後生）",null,null,null,null,null,null,null,null,null,null,null,null,null,null,null,null,null,"（右の☆欄のみを記載）",null,null,null,null,null,null,null,null,null,null,null,null,null,null,null,null,null,null,null,null,null,null,null,null,null,null,null,null,null,null,null,null,null,null,null,null,null,null,null,null,null,null,null,null,null,null,null,null,null,null,null,null,null,null,null,null,null,null,null,null,null,null,null,null,null,"円"]
[]
[null,null,null,null,null,"（注）「同一生計配偶者」とは、あなたと生計を一にする配偶者（青色事業専従者として給与の支払を受ける人及び白色事業専従者を除きます。）で、本年中の合計所得金額の見積額が48万円以下（給与所得だけの場合は、給与の収入金額が103万円以下）の人をいいます。"]

{"sheet":"R01配偶者控除等申告書","index":4,"n_rows":80,"n_cols":109,"rows_kept":80,"cut":false,"hidden":true,"merged":[[51,98,53,107],[51,79,53,86],[51,77,53,78],[48,79,50,86],[51,37,53,38],[48,58,50,59],[51,87,53,88],[54,37,56,38],[48,39,50,47],[48,87,50,88],[1,11,3,100],[22,10,31,11],[30,72,31,94],[18,11,20,23],[0,100,0,108],[7,11,12,18],[13,11,14,18],[4,70,6,100],[54,39,56,47],[54,17,56,26],[54,29,56,36],[51,29,53,36],[45,87,47,88],[54,89,56,97],[54,98,56,107],[51,89,53,97],[48,89,50,97],[48,77,50,78],[54,108,56,109],[26,70,27,71],[28,95,29,98],[26,72,27,94],[28,72,29,94],[51,27,53,28],[57,17,59,47],[36,58,38,59],[57,48,59,57],[57,58,59,59],[73,47,74,52],[73,53,74,58],[73,59,74,64],[71,53,72,58],[0,45,0,52],[0,53,0,58],[69,47,70,52],[69,53,70,58],[51,58,53,59],[51,39,53,47],[45,58,47,59],[34,48,35,59],[42,58,44,59],[34,39,35,47],[23,62,25,63],[23,64,25,65],[34,29,35,38],[36,29,38,36],[42,27,44,28],[45,27,47,28],[73,15,74,16],[73,17,74,22],[73,23,74,28],[73,29,74,34],[73,35,74,40],[73,41,74,46],[67,53,68,58],[67,59,68,64],[67,65,68,70],[69,23,70,28],[69,29,70,34],[69,35,70,40],[71,15,72,16],[71,17,72,22],[67,71,68,76],[67,35,68,40],[67,41,68,46],[51,108,53,109],[54,87,56,88],[69,15,70,16],[69,17,70,22],[73,65,74,70],[73,71,74,76],[69,59,70,64],[71,59,72,64],[71,71,72,76],[71,77,72,82],[54,48,56,57],[54,58,56,59],[67,77,68,82],[67,92,69,107],[72,92,74,107],[72,108,74,109],[54,67,56,76],[54,77,56,78],[54,79,56,86],[65,92,66,109],[67,108,69,109],[69,71,70,76],[57,98,59,107],[69,77,70,82],[70,92,71,109],[69,65,70,70],[71,65,72,70],[57,67,59,97],[71,41,72,46],[71,47,72,52],[67,47,68,52],[69,41,70,46],[57,108,59,109],[34,64,59,66],[34,98,35,109],[36,108,38,109],[42,98,44,107],[36,39,38,47],[39,87,41,88],[39,89,41,97],[42,89,44,97],[45,98,47,107],[45,89,47,97],[42,79,44,86],[34,79,35,88],[75,13,76,16],[75,17,76,28],[75,29,76,82],[69,13,74,14],[73,77,74,82],[71,23,72,28],[71,29,72,34],[71,35,72,40],[34,67,35,78],[54,27,56,28],[48,37,50,38],[39,48,41,57],[42,48,44,57],[42,29,44,36],[36,27,38,28],[39,79,41,86],[45,79,47,86],[42,77,44,78],[45,67,47,76],[45,77,47,78],[42,67,44,76],[39,29,41,36],[42,37,44,38],[48,67,50,76],[62,10,77,11],[63,13,68,16],[63,17,64,82],[65,17,68,22],[65,23,68,28],[65,29,68,34],[65,35,66,82],[45,17,47,26],[48,17,50,26],[51,17,53,26],[45,48,47,57],[48,48,50,57],[45,39,47,47],[51,48,53,57],[33,10,60,11],[39,67,41,76],[39,77,41,78],[39,58,41,59],[51,67,53,76],[34,14,59,16],[34,17,35,28],[36,17,38,26],[39,17,41,26],[42,17,44,26],[26,12,27,27],[28,12,31,27],[28,28,31,51],[39,27,41,28],[39,37,41,38],[45,37,47,38],[39,39,41,47],[26,28,27,51],[26,52,27,56],[28,52,31,56],[48,29,50,36],[48,27,50,28],[36,37,38,38],[45,29,47,36],[36,48,38,57],[11,19,14,30],[18,80,20,98],[18,57,20,58],[18,44,20,56],[24,95,25,98],[18,42,20,43],[18,59,20,77],[22,68,23,85],[22,52,22,67],[22,86,23,96],[23,66,25,67],[24,70,25,71],[24,72,25,94],[23,28,25,51],[22,12,25,27],[23,60,25,61],[23,58,25,59],[22,28,22,51],[24,68,31,69],[42,108,44,109],[42,87,44,88],[39,108,41,109],[11,70,14,103],[22,97,23,98],[23,52,25,57],[26,95,27,98],[34,89,35,97],[48,98,50,107],[22,103,31,111],[39,98,41,107],[36,67,38,76],[36,77,38,78],[36,79,38,86],[36,87,38,88],[36,89,38,97],[36,98,38,107],[48,108,50,109],[28,70,29,71],[26,62,27,67],[26,57,27,61],[28,57,31,61],[30,70,31,71],[4,19,7,30],[4,11,6,18],[18,24,20,34],[18,35,20,36],[15,12,17,101],[18,99,20,102],[18,78,20,79],[79,10,81,11],[79,12,81,111],[28,62,31,67],[4,61,10,69],[4,31,7,60],[8,31,10,60],[11,31,14,60],[11,61,14,69],[7,101,10,103],[7,70,10,100],[8,19,10,30],[18,37,20,41],[42,39,44,47],[18,103,20,111],[45,108,47,109],[22,99,31,102],[30,95,31,98]]}
[null,null,null,null,null,null,null,null,null,null,null,null,null,null,null,null,null,null,null,null,null,null,null,null,null,null,null,null,null,null,null,null,null,null,null,null,null,null,null,null,null,null,null,null,"所　属　：　静岡市立",null,null,null,null,null,null,null,null,null,null,null,null,null,null,null,null,null,null,null,null,null,null,null,null,{"$f":"\"氏　名　：　\"&BS8","v":"氏　名　：　"},null,null,null,null,null,null,null,null,null,null,null,null,null,null,null,null,null,null,null,null,null,null,null,null,null,null,null,null,null,"職 員 番 号 ："]
[null,null,null,null,null,null,null,null,null,null,null,"令和元年分　給与所得者の配偶者控除等申告書"]
[]
[]
[null,null,null,null,null,null,null,null,null,null,null," 所轄税務署長",null,null,null,null,null,null,null,"給与の支払者の\n名称 (氏名)",null,null,null,null,null,null,null,null,null,null,null,"静岡市役所　静岡市長\n田辺信弘（静岡市教育委員会）",null,null,null,null,null,null,null,null,null,null,null,null,null,null,null,null,null,null,null,null,null,null,null,null,null,null,null,null,null,"(フリガナ)\nあなたの氏名　"]
[]
[]
[null,null,null,null,null,null,null,null,null,null,null,"静岡",null,null,null,null,null,null,null,null,null,null,null,null,null,null,null,null,null,null,null,null,null,null,null,null,null,null,null,null,null,null,null,null,null,null,null,null,null,null,null,null,null,null,null,null,null,null,null,null,null,null,null,null,null,null,null,null,null,null,null,null,null,null,null,null,null,null,null,null,null,null,null,null,null,null,null,null,null,null,null,null,null,null,null,null,null,null,null,null,null,"㊞"]
[null,null,null,null,null,null,null,null,null,null,null,null,null,null,null,null,null,null,null,"給与の支払者の\n法人番号",null,null,null,null,null,null,null,null,null,null,null,"8000020221007"]
[]
[]
[null,null,null,null,null,null,null,null,null,null,null,null,null,null,null,null,null,null,null,"給与の支払者の\n所在地(住所)",null,null,null,null,null,null,null,null,null,null,null,"静岡市葵区追手町５番１号",null,null,null,null,null,null,null,null,null,null,null,null,null,null,null,null,null,null,null,null,null,null,null,null,null,null,null,null,null,"あなたの住所\n又は居所"]
[]
[null,null,null,null,null,null,null,null,null,null,null,"税務署長"]
[]
[null,null,null,null,null,null,null,null,null,null,null,null,"◎　あなたの合計所得金額の見積額が1,000万円を超える場合又は配偶者の合計所得金額の見積額が123万円を超える場合は、配偶者控除又は配偶者特別控除を受けることができません。\n◎　合計所得金額の見積額の計算に当たっては、下表「合計所得金額の見積額の計算表」をご利用ください。"]
[]
[]
[null,null,null,null,null,null,null,null,null,null,null,"あなたの本年中の\n合計所得金額の見積額",null,null,null,null,null,null,null,null,null,null,null,null,{"$f":"IF(AW58=\"\",\"\",AW58)","v":""},null,null,null,null,null,null,null,null,null,null,"円",null,"判定",null,null,null,null,null,null,"900万円以下（Ａ）",null,null,null,null,null,null,null,null,null,null,null,null,null,null,"900万円超950万円以下（Ｂ）",null,null,null,null,null,null,null,null,null,null,null,null,null,null,null,null,null,null,null,null,"950万円超1,000万円以下（Ｃ）",null,null,null,null,null,null,null,null,null,null,null,null,null,null,null,null,null,null,"区分\nⅠ",null,null,null,{"$f":"区分１判定!D2","v":""}]
[]
[]
[]
[null,null,null,null,null,null,null,null,null,null,"配偶者",null,"（フリガナ）\n氏　　　　名",null,null,null,null,null,null,null,null,null,null,null,null,null,null,null,"個人番号",null,null,null,null,null,null,null,null,null,null,null,null,null,null,null,null,null,null,null,null,null,null,null,"生年月日",null,null,null,null,null,null,null,null,null,null,null,null,null,null,null,"配偶者の本年中の合計所得金額の見積額",null,null,null,null,null,null,null,null,null,null,null,null,null,null,null,null,null,{"$f":"IF(CU58=\"\",\"\",CU58)","v":""},null,null,null,null,null,null,null,null,null,null,"円",null,"区分\nⅡ",null,null,null,{"$f":"区分2判定!E2","v":""}]
[null,null,null,null,null,null,null,null,null,null,null,null,null,null,null,null,null,null,null,null,null,null,null,null,null,null,null,null,null,null,null,null,null,null,null,null,null,null,null,null,null,null,null,null,null,null,null,null,null,null,null,null,"昭和26",null,null,null,null,null,"年",null,1,null,"月",null,1,null,"日"]
[null,null,null,null,null,null,null,null,null,null,null,null,null,null,null,null,null,null,null,null,null,null,null,null,null,null,null,null,null,null,null,null,null,null,null,null,null,null,null,null,null,null,null,null,null,null,null,null,null,null,null,null,null,null,null,null,null,null,null,null,null,null,null,null,null,null,null,null,"判定",null,null,null,"38万円以下かつ年齢70歳以上（昭25.1.1以前生）",null,null,null,null,null,null,null,null,null,null,null,null,null,null,null,null,null,null,null,null,null,null,"①"]
[]
[null,null,null,null,null,null,null,null,null,null,null,null,null,null,null,null,null,null,null,null,null,null,null,null,null,null,null,null,"あなたと配偶者の住所又は居所が\n異なる場合の配偶者の住所又は居所",null,null,null,null,null,null,null,null,null,null,null,null,null,null,null,null,null,null,null,null,null,null,null,"老人控除\n対象配偶者",null,null,null,null,"非居住者で\nある配偶者",null,null,null,null,"生計を一\nにする事実",null,null,null,null,null,null,null,null,null,"38万円以下かつ年齢70歳未満",null,null,null,null,null,null,null,null,null,null,null,null,null,null,null,null,null,null,null,null,null,null,"②"]
[]
[null,null,null,null,null,null,null,null,null,null,null,null,null,null,null,null,null,null,null,null,null,null,null,null,null,null,null,null,null,null,null,null,null,null,null,null,null,null,null,null,null,null,null,null,null,null,null,null,null,null,null,null,{"$f":"配偶者の生年月日!J2","v":{"$error":"#N/A"}},null,null,null,null,null,null,null,null,null,null,null,null,null,null,null,null,null,null,null,"38万円超85万円以下",null,null,null,null,null,null,null,null,null,null,null,null,null,null,null,null,null,null,null,null,null,null,"③"]
[]
[null,null,null,null,null,null,null,null,null,null,null,null,null,null,null,null,null,null,null,null,null,null,null,null,null,null,null,null,null,null,null,null,null,null,null,null,null,null,null,null,null,null,null,null,null,null,null,null,null,null,null,null,null,null,null,null,null,null,null,null,null,null,null,null,null,null,null,null,null,null,null,null,"85万円超123万円以下",null,null,null,null,null,null,null,null,null,null,null,null,null,null,null,null,null,null,null,null,null,null,"④"]
[]
[]
[null,null,null,null,null,null,null,null,null,null,"合計所得金額の見積額の計算表"]
[null,null,null,null,null,null,null,null,null,null,null,null,null,null,"あなたの合計所得金額（見積額）",null,null,"所得の種類",null,null,null,null,null,null,null,null,null,null,null,"収入金額等ⓐ",null,null,null,null,null,null,null,null,null,"必要経費等ⓑ",null,null,null,null,null,null,null,null,"所得金額(ⓐ－ⓑ)",null,null,null,null,null,null,null,null,null,null,null,null,null,null,null,"配偶者の合計所得金額（見積額）",null,null,"所得の種類",null,null,null,null,null,null,null,null,null,null,null,"収入金額等ⓐ",null,null,null,null,null,null,null,null,null,"必要経費等ⓑ",null,null,null,null,null,null,null,null,"所得金額(ⓐ－ⓑ)"]
[]
[null,null,null,null,null,null,null,null,null,null,null,null,null,null,null,null,null,"給与所得",null,null,null,null,null,null,null,null,null,"(1)",null,null,null,null,null,null,null,null,null,"円",null,null,null,null,null,null,null,null,null,null,{"$f":"IF(AD37=\"\",\"\",あなたの合計所得金額計算!C2)","v":""},null,null,null,null,null,null,null,null,null,"円",null,null,null,null,null,null,null,null,"給与所得",null,null,null,null,null,null,null,null,null,"(1)",null,null,null,null,null,null,null,null,null,"円",null,null,null,null,null,null,null,null,null,null,{"$f":"IF(CB37=\"\",\"\",配偶者の合計所得金額計算!C2)","v":""},null,null,null,null,null,null,null,null,null,"円"]
[]
[]
[null,null,null,null,null,null,null,null,null,null,null,null,null,null,null,null,null,"事業所得",null,null,null,null,null,null,null,null,null,"(2)",null,null,null,null,null,null,null,null,null,null,null,null,null,null,null,null,null,null,null,null,{"$f":"IF(AD40=\"\",\"\",IF(AN40=\"\",\"必要経費等ⓑ欄を入力\",AD40-AN40))","v":""},null,null,null,null,null,null,null,null,null,null,null,null,null,null,null,null,null,null,"事業所得",null,null,null,null,null,null,null,null,null,"(2)",null,null,null,null,null,null,null,null,null,null,null,null,null,null,null,null,null,null,null,null,{"$f":"IF(CB40=\"\",\"\",IF(CL40=\"\",\"必要経費等ⓑ欄を入力\",CB40-CL40))","v":""}]
[]
[]
[null,null,null,null,null,null,null,null,null,null,null,null,null,null,null,null,null,"雑所得",null,null,null,null,null,null,null,null,null,"(3)",null,null,null,null,null,null,null,null,null,null,null,null,null,null,null,null,null,null,null,null,{"$f":"IF(AD43=\"\",\"\",IF(AN43=\"\",\"必要経費等ⓑ欄を入力\",IF(AD43-AN43<0,0,AD43-AN43)))","v":""},null,null,null,null,null,null,null,null,null,null,null,null,null,null,null,null,null,null,"雑所得",null,null,null,null,null,null,null,null,null,"(3)",null,null,null,null,null,null,null,null,null,null,null,null,null,null,null,null,null,null,null,null,{"$f":"IF(CB43=\"\",\"\",IF(CL43=\"\",\"必要経費等ⓑ欄を入力\",IF(CB43-CL43<0,0,CB43-CL43)))","v":""}]
[]
[]
[null,null,null,null,null,null,null,null,null,null,null,null,null,null,null,null,null,"配当所得",null,null,null,null,null,null,null,null,null,"(4)",null,null,null,null,null,null,null,null,null,null,null,null,null,null,null,null,null,null,null,null,{"$f":"IF(AD46=\"\",\"\",IF(AN46=\"\",\"必要経費等ⓑ欄を入力\",IF(AD46-AN46<0,0,AD46-AN46)))","v":""},null,null,null,null,null,null,null,null,null,null,null,null,null,null,null,null,null,null,"配当所得",null,null,null,null,null,null,null,null,null,"(4)",null,null,null,null,null,null,null,null,null,null,null,null,null,null,null,null,null,null,null,null,{"$f":"IF(CB46=\"\",\"\",IF(CL46=\"\",\"必要経費等ⓑ欄を入力\",IF(CB46-CL46<0,0,CB46-CL46)))","v":""}]
[]
[]
[null,null,null,null,null,null,null,null,null,null,null,null,null,null,null,null,null,"不動産所得",null,null,null,null,null,null,null,null,null,"(5)",null,null,null,null,null,null,null,null,null,null,null,null,null,null,null,null,null,null,null,null,{"$f":"IF(AD49=\"\",\"\",IF(AN49=\"\",\"必要経費等ⓑ欄を入力\",AD49-AN49))","v":""},null,null,null,null,null,null,null,null,null,null,null,null,null,null,null,null,null,null,"不動産所得",null,null,null,null,null,null,null,null,null,"(5)",null,null,null,null,null,null,null,null,null,null,null,null,null,null,null,null,null,null,null,null,{"$f":"IF(CB49=\"\",\"\",IF(CL49=\"\",\"必要経費等ⓑ欄を入力\",CB49-CL49))","v":""}]
[]
[]
[null,null,null,null,null,null,null,null,null,null,null,null,null,null,null,null,null,"退職所得",null,null,null,null,null,null,null,null,null,"(6)",null,null,null,null,null,null,null,null,null,null,null,null,null,null,null,null,null,null,null,null,null,null,null,null,null,null,null,null,null,null,null,null,null,null,null,null,null,null,null,"退職所得",null,null,null,null,null,null,null,null,null,"(6)"]
[]
[]
[null,null,null,null,null,null,null,null,null,null,null,null,null,null,null,null,null,"(1)～(6)以外の所得",null,null,null,null,null,null,null,null,null,"(7)",null,null,null,null,null,null,null,null,null,null,null,null,null,null,null,null,null,null,null,null,null,null,null,null,null,null,null,null,null,null,null,null,null,null,null,null,null,null,null,"(1)～(6)以外の所得",null,null,null,null,null,null,null,null,null,"(7)"]
[]
[]
[null,null,null,null,null,null,null,null,null,null,null,null,null,null,null,null,null,"(1)～(7)の合計額",null,null,null,null,null,null,null,null,null,null,null,null,null,null,null,null,null,null,null,null,null,null,null,null,null,null,null,null,null,null,{"$f":"IF(OR(COUNT(AW37:BF57)=0,COUNTIF(AW37:BF57,\"*入力\")>0),\"\",IF(SUM(AW37:BF57)<0,0,SUM(AW37:BF57)))","v":""},null,null,null,null,null,null,null,null,null,null,null,null,null,null,null,null,null,null,"(1)～(7)の合計額",null,null,null,null,null,null,null,null,null,null,null,null,null,null,null,null,null,null,null,null,null,null,null,null,null,null,null,null,null,null,{"$f":"IF(OR(COUNT(CU37:DD57)=0,COUNTIF(CU37:DD57,\"*入力\")>0),\"\",IF(SUM(CU37:DD57)<0,0,SUM(CU37:DD57)))","v":""}]
[]
[]
[]
[]
[null,null,null,null,null,null,null,null,null,null,"控除額の計算"]
[null,null,null,null,null,null,null,null,null,null,null,null,null,null,null,null,null,"区分Ⅱ"]
[]
[null,null,null,null,null,null,null,null,null,null,null,null,null,null,null,null,null,"①",null,null,null,null,null,"②",null,null,null,null,null,"③",null,null,null,null,null,"　　　　　　　　　　　　　　　　　　　　　　　　　　　④",null,null,null,null,null,null,null,null,null,null,null,null,null,null,null,null,null,null,null,null,null,null,null,null,null,null,null,null,null,null,null,null,null,null,null,null,null,null,null,null,null,null,null,null,null,null,null,null,null,null,null,null,null,null,null,null,"配偶者控除の額"]
[]
[null,null,null,null,null,null,null,null,null,null,null,null,null,null,null,null,null,null,null,null,null,null,null,null,null,null,null,null,null,null,null,null,null,null,null,"85万円超\n90万円以下",null,null,null,null,null,"90万円超\n95万円以下",null,null,null,null,null,"95万円超\n100万円以下",null,null,null,null,null,"100万円超\n105万円以下",null,null,null,null,null,"105万円超\n110万円以下",null,null,null,null,null,"110万円超\n115万円以下",null,null,null,null,null,"115万円超\n120万円以下",null,null,null,null,null,"120万円超\n123万円以下",null,null,null,null,null,null,null,null,null,null,null,null,null,null,{"$f":"'配偶者（特別）控除の額'!D2","v":""},null,null,null,null,null,null,null,null,null,null,null,null,null,null,null,"円"]
[]
[null,null,null,null,null,null,null,null,null,null,null,null,null,"区分Ⅰ",null,"Ａ",null,480000,null,null,null,null,null,380000,null,null,null,null,null,380000,null,null,null,null,null,360000,null,null,null,null,null,310000,null,null,null,null,null,260000,null,null,null,null,null,210000,null,null,null,null,null,160000,null,null,null,null,null,110000,null,null,null,null,null,60000,null,null,null,null,null,30000]
[null,null,null,null,null,null,null,null,null,null,null,null,null,null,null,null,null,null,null,null,null,null,null,null,null,null,null,null,null,null,null,null,null,null,null,null,null,null,null,null,null,null,null,null,null,null,null,null,null,null,null,null,null,null,null,null,null,null,null,null,null,null,null,null,null,null,null,null,null,null,null,null,null,null,null,null,null,null,null,null,null,null,null,null,null,null,null,null,null,null,null,null,"配偶者特別控除の額"]
[null,null,null,null,null,null,null,null,null,null,null,null,null,null,null,"Ｂ",null,320000,null,null,null,null,null,260000,null,null,null,null,null,260000,null,null,null,null,null,240000,null,null,null,null,null,210000,null,null,null,null,null,180000,null,null,null,null,null,140000,null,null,null,null,null,110000,null,null,null,null,null,80000,null,null,null,null,null,40000,null,null,null,null,null,20000]
[null,null,null,null,null,null,null,null,null,null,null,null,null,null,null,null,null,null,null,null,null,null,null,null,null,null,null,null,null,null,null,null,null,null,null,null,null,null,null,null,null,null,null,null,null,null,null,null,null,null,null,null,null,null,null,null,null,null,null,null,null,null,null,null,null,null,null,null,null,null,null,null,null,null,null,null,null,null,null,null,null,null,null,null,null,null,null,null,null,null,null,null,{"$f":"'配偶者（特別）控除の額'!E2","v":""},null,null,null,null,null,null,null,null,null,null,null,null,null,null,null,"円"]
[null,null,null,null,null,null,null,null,null,null,null,null,null,null,null,"Ｃ",null,160000,null,null,null,null,null,130000,null,null,null,null,null,130000,null,null,null,null,null,120000,null,null,null,null,null,110000,null,null,null,null,null,90000,null,null,null,null,null,70000,null,null,null,null,null,60000,null,null,null,null,null,40000,null,null,null,null,null,20000,null,null,null,null,null,10000]
[]
[null,null,null,null,null,null,null,null,null,null,null,null,null,"摘要",null,null,null,"配偶者控除",null,null,null,null,null,null,null,null,null,null,null,"配偶者特別控除"]
[]
[]
[]
[null,null,null,null,null,null,null,null,null,null,"備考"]

{"sheet":"配偶者の生年月日","index":5,"n_rows":130,"n_cols":12,"rows_kept":130,"cut":false,"hidden":true,"merged":[]}
["配偶者生年月日",null,null,null,null,"選択和暦","選択西暦","選択月","選択日","老人控除対象配偶者","うるう年判定","生年月日判定"]
["年","西暦","月","日",null,{"$f":"基礎・配偶者・調整控除申告書!CQ29","v":0},{"$f":"VLOOKUP(F2,A4:B130,2,FALSE)","v":{"$error":"#N/A"}},{"$f":"基礎・配偶者・調整控除申告書!CZ29","v":0},{"$f":"基礎・配偶者・調整控除申告書!DF29","v":0},{"$f":"IF(AND('R01配偶者控除等申告書'!BA24<>\"\",'R01配偶者控除等申告書'!BI24<>\"\",'R01配偶者控除等申告書'!BM24<>\"\"),IF(OR(G2<1951,AND(G2=1951,H2=1,I2=1)),\"○\",\"\"),\"\")","v":{"$error":"#N/A"}},{"$f":"IFERROR(IF(OR(MOD(G2,400)=0,AND(MOD(G2,4)=0,MOD(G2,100)<>0)),1,0),0)","v":0},{"$f":"IF(OR(H2=2,H2=4,H2=6,H2=9,H2=11),IF(H2=2,IF(K2=0,IF(I2>28,1,0),IF(I2>29,1,0)),IF(I2>30,1,0)),0)","v":0}]
[]
["明治31",1898,1,1]
["明治32",1899,2,2]
["明治33",1900,3,3]
["明治34",1901,4,4]
["明治35",1902,5,5]
["明治36",1903,6,6]
["明治37",1904,7,7]
["明治38",1905,8,8]
["明治39",1906,9,9]
["明治40",1907,10,10]
["明治41",1908,11,11]
["明治42",1909,12,12]
["明治43",1910,null,13]
["明治44",1911,null,14]
["明治45",1912,null,15]
["大正元",1912,null,16]
["大正2",1913,null,17]
["大正3",1914,null,18]
["大正4",1915,null,19]
["大正5",1916,null,20]
["大正6",1917,null,21]
["大正7",1918,null,22]
["大正8",1919,null,23]
["大正9",1920,null,24]
["大正10",1921,null,25]
["大正11",1922,null,26]
["大正12",1923,null,27]
["大正13",1924,null,28]
["大正14",1925,null,29]
["大正15",1926,null,30]
["昭和元",1926,null,31]
["昭和2",1927]
["昭和3",1928]
["昭和4",1929]
["昭和5",1930]
["昭和6",1931]
["昭和7",1932]
["昭和8",1933]
["昭和9",1934]
["昭和10",1935]
["昭和11",1936]
["昭和12",1937]
["昭和13",1938]
["昭和14",1939]
["昭和15",1940]
["昭和16",1941]
["昭和17",1942]
["昭和18",1943]
["昭和19",1944]
["昭和20",1945]
["昭和21",1946]
["昭和22",1947]
["昭和23",1948]
["昭和24",1949]
["昭和25",1950]
["昭和26",1951]
["昭和27",1952]
["昭和28",1953]
["昭和29",1954]
["昭和30",1955]
["昭和31",1956]
["昭和32",1957]
["昭和33",1958]
["昭和34",1959]
["昭和35",1960]
["昭和36",1961]
["昭和37",1962]
["昭和38",1963]
["昭和39",1964]
["昭和40",1965]
["昭和41",1966]
["昭和42",1967]
["昭和43",1968]
["昭和44",1969]
["昭和45",1970]
["昭和46",1971]
["昭和47",1972]
["昭和48",1973]
["昭和49",1974]
["昭和50",1975]
["昭和51",1976]
["昭和52",1977]
["昭和53",1978]
["昭和54",1979]
["昭和55",1980]
["昭和56",1981]
["昭和57",1982]
["昭和58",1983]
["昭和59",1984]
["昭和60",1985]
["昭和61",1986]
["昭和62",1987]
["昭和63",1988]
["昭和64",1989]
["平成元",1989]
["平成2",1990]
["平成3",1991]
["平成4",1992]
["平成5",1993]
["平成6",1994]
["平成7",1995]
["平成8",1996]
["平成9",1997]
["平成10",1998]
["平成11",1999]
["平成12",2000]
["平成13",2001]
["平成14",2002]
["平成15",2003]
["平成16",2004]
["平成17",2005]
["平成18",2006]
["平成19",2007]
["平成20",2008]
["平成21",2009]
["平成22",2010]
["平成23",2011]
["平成24",2012]
["平成25",2013]
["平成26",2014]
["平成27",2015]
["平成28",2016]
["平成29",2017]
["平成30",2018]
["平成31",2019]
["令和元",2019]
["令和2",2020]

{"sheet":"あなたの合計所得金額計算","index":6,"n_rows":12,"n_cols":3,"rows_kept":12,"cut":false,"hidden":true,"merged":[]}
["収入金額","計算式","計算結果"]
[550999,0,{"$f":"IF(基礎・配偶者・調整控除申告書!Q42<=A2,B2,IF(基礎・配偶者・調整控除申告書!Q42<=A3,B3,IF(基礎・配偶者・調整控除申告書!Q42<=A4,B4,IF(基礎・配偶者・調整控除申告書!Q42<=A5,B5,IF(基礎・配偶者・調整控除申告書!Q42<=A6,B6,IF(基礎・配偶者・調整控除申告書!Q42<=A7,B7,IF(基礎・配偶者・調整控除申告書!Q42<=A8,B8,IF(基礎・配偶者・調整控除申告書!Q42<=A9,B9,IF(基礎・配偶者・調整控除申告書!Q42<=A10,B10,IF(基礎・配偶者・調整控除申告書!Q42<=A11,B11,B12))))))))))","v":0}]
[1618999,{"$f":"基礎・配偶者・調整控除申告書!Q42-550000","v":-550000}]
[1619999,1069000]
[1621999,1070000]
[1623999,1072000]
[1627999,1074000]
[1799999,{"$f":"ROUNDDOWN(基礎・配偶者・調整控除申告書!Q42/4,-3)*2.4+100000","v":100000}]
[3599999,{"$f":"ROUNDDOWN(基礎・配偶者・調整控除申告書!Q42/4,-3)*2.8-80000","v":-80000}]
[6599999,{"$f":"ROUNDDOWN(基礎・配偶者・調整控除申告書!Q42/4,-3)*3.2-440000","v":-440000}]
[8499999,{"$f":"ROUNDDOWN(基礎・配偶者・調整控除申告書!Q42*0.9,0)-1100000","v":-1100000}]
[null,{"$f":"基礎・配偶者・調整控除申告書!Q42-1950000","v":-1950000}]

{"sheet":"区分１判定","index":7,"n_rows":2,"n_cols":4,"rows_kept":2,"cut":false,"hidden":true,"merged":[]}
["A","B","C","区分1"]
[{"$f":"IF(基礎・配偶者・調整控除申告書!AE52<=9000000,TRUE,FALSE)","v":false},{"$f":"IF(AND(基礎・配偶者・調整控除申告書!AE52>9000000,基礎・配偶者・調整控除申告書!AE52<=9500000),TRUE,FALSE)","v":false},{"$f":"IF(AND(基礎・配偶者・調整控除申告書!AE52>9500000,基礎・配偶者・調整控除申告書!AE52<=10000000),TRUE,FALSE)","v":false},{"$f":"IF($A$2=TRUE,\"A\",IF($B$2=TRUE,\"B\",IF($C$2=TRUE,\"C\",IF(基礎・配偶者・調整控除申告書!AE52=\"\",\"\",\"1,000万円超です\"))))","v":""}]

{"sheet":"配偶者の合計所得金額計算","index":8,"n_rows":12,"n_cols":3,"rows_kept":12,"cut":false,"hidden":true,"merged":[]}
["収入金額","計算式","計算結果"]
[550999,0,{"$f":"IF(基礎・配偶者・調整控除申告書!BH42<=A2,B2,IF(基礎・配偶者・調整控除申告書!BH42<=A3,B3,IF(基礎・配偶者・調整控除申告書!BH42<=A4,B4,IF(基礎・配偶者・調整控除申告書!BH42<=A5,B5,IF(基礎・配偶者・調整控除申告書!BH42<=A6,B6,IF(基礎・配偶者・調整控除申告書!BH42<=A7,B7,IF(基礎・配偶者・調整控除申告書!BH42<=A8,B8,IF(基礎・配偶者・調整控除申告書!BH42<=A9,B9,IF(基礎・配偶者・調整控除申告書!BH42<=A10,B10,IF(基礎・配偶者・調整控除申告書!BH42<=A11,B11,B12))))))))))","v":0}]
[1618999,{"$f":"基礎・配偶者・調整控除申告書!BH42-550000","v":-550000}]
[1619999,1069000]
[1621999,1070000]
[1623999,1072000]
[1627999,1074000]
[1799999,{"$f":"ROUNDDOWN(基礎・配偶者・調整控除申告書!BH42/4,-3)*2.4+100000","v":100000}]
[3599999,{"$f":"ROUNDDOWN(基礎・配偶者・調整控除申告書!BH42/4,-3)*2.8-80000","v":-80000}]
[6599999,{"$f":"ROUNDDOWN(基礎・配偶者・調整控除申告書!BH42/4,-3)*3.2-440000","v":-440000}]
[8499999,{"$f":"ROUNDDOWN(基礎・配偶者・調整控除申告書!BH42*0.9,0)-1100000","v":-1100000}]
[null,{"$f":"基礎・配偶者・調整控除申告書!BH42-1950000","v":-1950000}]

{"sheet":"区分2判定","index":9,"n_rows":3,"n_cols":5,"rows_kept":3,"cut":false,"hidden":true,"merged":[]}
["①","②","③","④","区分2"]
[{"$f":"IF(AND(基礎・配偶者・調整控除申告書!BX52<>\"\",配偶者の生年月日!J2=\"○\",基礎・配偶者・調整控除申告書!BX52<=480000),TRUE,FALSE)","v":{"$error":"#N/A"}},{"$f":"IF(AND(基礎・配偶者・調整控除申告書!BX52<>\"\",配偶者の生年月日!J2=\"\",基礎・配偶者・調整控除申告書!BX52<=480000,基礎・配偶者・調整控除申告書!CQ29<>\"\",基礎・配偶者・調整控除申告書!CZ29<>\"\",基礎・配偶者・調整控除申告書!DF29<>\"\"),TRUE,FALSE)","v":{"$error":"#N/A"}},{"$f":"IF(AND(基礎・配偶者・調整控除申告書!BX52>480000,基礎・配偶者・調整控除申告書!BX52<=950000),TRUE,FALSE)","v":false},{"$f":"IF(AND(基礎・配偶者・調整控除申告書!BX52>950000,基礎・配偶者・調整控除申告書!BX52<=1330000),TRUE,FALSE)","v":false},{"$f":"IF(配偶者の生年月日!L2=1,\"\",IF(基礎・配偶者・調整控除申告書!BX52=\"\",\"\",IF(OR(基礎・配偶者・調整控除申告書!CQ29=\"\",基礎・配偶者・調整控除申告書!CZ29=\"\",基礎・配偶者・調整控除申告書!DF29=\"\"),\"\",IF(A2=TRUE,\"①\",IF(B2=TRUE,\"②\",IF(C2=TRUE,\"③\",IF(D2=TRUE,\"④\",\"133万円超です\")))))))","v":""}]
[null,null,null,null,{"$f":"IF(配偶者の生年月日!L2=1,\"配偶者の生年月日を正しく入力してください！\",IF(基礎・配偶者・調整控除申告書!BX52=\"\",\"\",IF(OR(基礎・配偶者・調整控除申告書!CQ29=\"\",基礎・配偶者・調整控除申告書!CZ29=\"\",基礎・配偶者・調整控除申告書!DF29=\"\"),\"配偶者の生年月日を入力してください！\",\"\")))","v":""}]

{"sheet":"配偶者（特別）控除の額","index":10,"n_rows":10,"n_cols":16,"rows_kept":10,"cut":false,"hidden":true,"merged":[]}
["区分1","区分2","区分2金額","配偶者控除の額","配偶者特別控除の額",null,null,"①","②"]
[{"$f":"基礎・配偶者・調整控除申告書!AJ59","v":""},{"$f":"基礎・配偶者・調整控除申告書!CU53","v":""},{"$f":"基礎・配偶者・調整控除申告書!BX52","v":""},{"$f":"IFERROR(INDEX(H2:I4,MATCH(A2,G2:G4,0),MATCH(B2,H1:I1,0)),\"\")","v":""},{"$f":"IF(OR(B2=\"③\",B2=\"④\"),IFERROR(INDEX(H8:P10,MATCH(A2,G8:G10,0),MATCH(IF(B2=\"④\",IF(C2<=I7,I7,IF(C2<=J7,J7,IF(C2<=K7,K7,IF(C2<=L7,L7,IF(C2<=M7,M7,IF(C2<=N7,N7,IF(C2<=O7,O7,IF(C2<=P7,P7,\"\")))))))),B2),H7:P7,0)),\"\"),\"\")","v":""},null,"A",480000,380000]
[null,null,null,null,null,null,"B",320000,260000]
[null,null,null,null,null,null,"C",160000,130000]
[]
[]
[null,null,null,null,null,null,null,"③",1000000,1050000,1100000,1150000,1200000,1250000,1300000,1330000]
[null,null,null,null,null,null,"A",380000,360000,310000,260000,210000,160000,110000,60000,30000]
[null,null,null,null,null,null,"B",260000,240000,210000,180000,140000,110000,80000,40000,20000]
[null,null,null,null,null,null,"C",130000,120000,110000,90000,70000,60000,40000,20000,10000]